{"text_format":"2","workbook":"xlsx","n_sheets":17,"sheets":["五菱之光小卡","五菱之光","五菱宏光v","新宏光S客车","星光560 ","星光730","缤果","星光","星光s","悦也plus","云海","宏光s3","星驰","扬光","迷你","五菱荣光新卡燃油","荣光小卡"],"not_rendered":{"charts":0,"images":116,"macros":0,"external_links":0,"defined_names":3,"comments":4,"pivot_tables":0},"unopened":[],"bounds":{"document_bytes":16777216,"sheet_cells":100000,"run_cost":"one","rows_first":2000,"rows_last":500,"rows_between":2000,"halvings":0,"cell_chars":16384,"cell_head_chars":4096},"cells_cut":0,"cells_raw":0,"read":"whole","date_system":"1900"}

{"sheet":"五菱之光小卡","index":0,"n_rows":3,"n_cols":18,"rows_kept":3,"cut":false,"hidden":false,"merged":[[1,8,2,8],[1,17,2,17]]}
["国内名称","推广命名","版本","图片Pic","官方指导价","系列\nSeries","型号\nModel","车型代码\nModelCode","发动机代码\nEngine Code ","主要配置描述\nMajor Configurations Description","\nFOB价格\nFOB Price (RMB)","\nFCA价格\nFCA Price (RMB)","\nEXW价格\nEXW Price (RMB)","\nFOB价格\nFOB Price (USD)","\nFCA价格\nFCA Price (USD)","\nEXW价格\nEXW Price (USD)","图片Pic"]
["五菱之光小卡","五菱之光小卡 1.5L 5MT 单排","1.5-单排",{"$f":"_xlfn.DISPIMG(\"ID_DBC11CC41D794C3C96907A0863A7B7E2\",1)","v":"=DISPIMG(\"ID_DBC11CC41D794C3C96907A0863A7B7E2\",1)"},36900,"新之光单排货车\n N111 Single Cab Pickup","LZW1020EQU\n国Ⅵ China Ⅵ",1142,"UF5\n(1.485L)\n5MT","实用型（2座，前置空调G，单风扇，ABS，铁车轮） \nUtility (2 Seats, A/C-G, Single Fan, ABS, Steel Wheel)",35102.0408163265,34734.693877551,33051.0204081633,5102.04081632653,5048.64736592311,4803.92738490745,{"$f":"_xlfn.DISPIMG(\"ID_2A17331236224B90A8BD60C408CA46CA\",1)","v":"=DISPIMG(\"ID_2A17331236224B90A8BD60C408CA46CA\",1)"},{"$f":"_xlfn.DISPIMG(\"ID_986F851C9CA34ECD8B95D11121379335\",1)","v":"=DISPIMG(\"ID_986F851C9CA34ECD8B95D11121379335\",1)"}]
["五菱之光小卡","五菱之光小卡 1.5L 5MT 双排","1.5-双排",{"$f":"_xlfn.DISPIMG(\"ID_A45873D4CAE24429A88FDA326867FAAE\",1)","v":"=DISPIMG(\"ID_A45873D4CAE24429A88FDA326867FAAE\",1)"},39900,"新之光双排货车\nN111 Double Cab Pickup","LZW1020SEQU\n国Ⅵ China Ⅵ\n国六b RDE","114A",null,"实用型（5座，前置空调G，单风扇，ABS，铁车轮） \nUtility (5 Seats, A/C-G, Single Fan, ABS, Steel Wheel)",36734.693877551,36367.3469387755,34683.6734693878,5339.34504034172,5285.9515899383,5041.23160892264,{"$f":"_xlfn.DISPIMG(\"ID_3CA5AD1ADF1C49D99D7A1A3D8889D412\",1)","v":"=DISPIMG(\"ID_3CA5AD1ADF1C49D99D7A1A3D8889D412\",1)"}]

{"sheet":"五菱之光","index":1,"n_rows":6,"n_cols":18,"rows_kept":6,"cut":false,"hidden":false,"merged":[[1,0,2,0],[3,0,5,0],[3,5,5,5],[3,6,4,6],[1,8,2,8],[3,8,4,8],[1,16,2,16]]}
["国内名称","推广命名","版本","图片Pic","官方指导价","系列\nSeries","型号\nModel","车型代码\nModelCode","发动机代码\nEngine Code ","主要配置描述\nMajor Configurations Description","\nFOB价格\nFOB Price (RMB)","\nFCA价格\nFCA Price (RMB)","\nEXW价格\nEXW Price (RMB)","\nFOB价格\nFOB Price (USD)","\nFCA价格\nFCA Price (USD)","\nEXW价格\nEXW Price (USD)","图片Pic"]
["五菱之光 燃油版","五菱之光 1.5L 5MT 实用型","1.5L-实用型7座",{"$f":"_xlfn.DISPIMG(\"ID_F69BCA786449439C93BA955052858075\",1)","v":"=DISPIMG(\"ID_F69BCA786449439C93BA955052858075\",1)"},37900,"之光微面\nN111 Passenger","LZW6389EQU\n国Ⅵ China Ⅵ\n国六b RDE","1P9D","UF5\n(1.485L)\n5MT","LV0 (实用型，7座，前置空调G，机械转向，ABS，后侧固定窗，铁车轮，胎压监测，后钢板弹簧非独立悬架） \nLV0 (Utility, 7 Seats, A/C-G, Mechanical Steering, ABS, Rear Quarter Fixed Window, Steel Wheel, TPMS, Rear Leaf Spring Non Isolated Rear Suspension)",35204.0816326531,34836.7346938776,33336.7346938776,5116.87233032748,5063.47887992406,4845.45562411011,{"$f":"_xlfn.DISPIMG(\"ID_AB2659C31DD141F5B9B9F9869E2715DB\",1)","v":"=DISPIMG(\"ID_AB2659C31DD141F5B9B9F9869E2715DB\",1)"}]
[null,"五菱之光 1.5L 5MT 实用型","1.5L-实用型封窗车2座",{"$f":"_xlfn.DISPIMG(\"ID_2D601B467A1F4A7C86AF7AAEF394D373\",1)","v":"=DISPIMG(\"ID_2D601B467A1F4A7C86AF7AAEF394D373\",1)"},37900,"之光厢式运输车\nN111 Cargo","LZW5022XXYEQUA\n国Ⅵ China Ⅵ\n国六b RDE","1PA8",null,"LV0（实用型，2座，前置空调G，机械转向，ABS，隔离栏，铁车轮，后钢板弹簧非独立悬架）\nLV0 (Utility, 2 Seats, A/C-G, Mechanical Steering, ABS, CAB Shelter, Steel Wheel,Rear Leaf Spring Non Isolated Rear Suspension)",34387.7551020408,34020.4081632653,32520.4081632653,4998.22021831989,4944.82676791647,4726.80351210252]
["五菱之光 纯电版","五菱之光EV 客车版 舒适型","201km纯电标准型",{"$f":"_xlfn.DISPIMG(\"ID_052F626A54534FC692FACBC24E081427\",1)","v":"=DISPIMG(\"ID_052F626A54534FC692FACBC24E081427\",1)"},47800,"五菱之光EV\nCE110M EV","LZW7001EVE1","CD0B","续航：201公里\nCLTC mileage:\n201 KM","LV0 (4座，空调G，前电动门窗，EPS，ABS+EBD，前盘后鼓，铁车轮，驾驶员气囊，中控门锁，遥控钥匙，行李架，尾箱车载电源，织物座椅，直流快充，收音机+USB，后螺旋弹簧三连杆式半独立悬架)   \nLV0 (4 Seats, A/C-G, Front Power Window,  EPS, ABS+EBD, Front Disk and Rear Drum, Steel Wheel, Driver Airbag, Power Door Lock, Remote Key, Roofrack, Trunk-mounted Power Supply, Fabric Seats, DC Fast Charge，Radio+USB, 3-link Coil spring half isolate rear suspension)",48367.3469387755,48000,46357.1428571429,7030.13763644993,6976.74418604651,6737.95681063123,{"$f":"_xlfn.DISPIMG(\"ID_79FD2E14A04546FCB06B65B08632F199\",1)","v":"=DISPIMG(\"ID_79FD2E14A04546FCB06B65B08632F199\",1)"},{"$f":"_xlfn.DISPIMG(\"ID_5680412E06704CB1B903D0565F537D91\",1)","v":"=DISPIMG(\"ID_5680412E06704CB1B903D0565F537D91\",1)"}]
[null,"五菱之光EV 客车版 标准型","201km纯电舒适型",{"$f":"_xlfn.DISPIMG(\"ID_E0D49DB3D5894C2CA2098C138C79DF78\",1)","v":"=DISPIMG(\"ID_E0D49DB3D5894C2CA2098C138C79DF78\",1)"},50800,null,null,"CD0A",null,"LV0 (4座，空调G，前电动门窗，EPS，ABS+EBD，前盘后鼓，铁车轮，驾驶员气囊，中控门锁，遥控钥匙，织物座椅，直流快充，收音机+USB，后螺旋弹簧三连杆式半独立悬架)   \nLV0 (4 Seats, A/C-G, Front Power Window,  EPS, ABS+EBD, Front Disk and Rear Drum, Steel Wheel, Driver Airbag, Power Door Lock, Remote Key, Fabric Seats, DC Fast Charge，Radio+USB, 3-link Coil spring half isolate rear suspension)",47551.0204081633,47183.6734693878,45540.8163265306,6911.48552444234,6858.09207403892,6619.30469862364,"=DISPIMG(\"ID_79FD2E14A04546FCB06B65B08632F199\",1)",{"$f":"_xlfn.DISPIMG(\"ID_F8DA4D60792F485A95DAC92BC14845B4\",1)","v":"=DISPIMG(\"ID_F8DA4D60792F485A95DAC92BC14845B4\",1)"}]
[null,"五菱之光EV-进取型","301km纯电进取型【 英文版可选】",{"$f":"_xlfn.DISPIMG(\"ID_C9588F42BC8D467BBBC7FE8A9055D8B1\",1)","v":"=DISPIMG(\"ID_C9588F42BC8D467BBBC7FE8A9055D8B1\",1)"},57800,null,"LZW7001BEVE2","CD0F","续航：305公里\nCLTC mileage:\n305 KM","LV1(4座，空调G，前电动门窗，EPS，ABS+EBD，前盘后鼓，铁车轮，双气囊，中控门锁，LED大灯、遥控钥匙，织物座椅，直流快充，可视倒车雷达+收音机+USB，后螺旋弹簧三连杆式半独立悬架)   \nLV1 (4 Seats, A/C-G, Front Power Window,  EPS, ABS+EBD, Front Disk and Rear Drum, Steel Wheel, Dual Airbag, Power Door Lock, LED Headlight, Remote Key, Fabric Seats, DC Fast Charge，Reversing Camera+Radio+USB, 3-link Coil spring half isolate rear suspension)",53877.5510204082,53510.2040816327,51867.3469387755,7831.03939250119,7777.64594209777,7538.85856668249,"=DISPIMG(\"ID_79FD2E14A04546FCB06B65B08632F199\",1)"]

{"sheet":"五菱宏光v","index":2,"n_rows":4,"n_cols":18,"rows_kept":4,"cut":false,"hidden":false,"merged":[[1,0,3,0],[1,5,2,5],[1,6,2,6],[1,8,3,8],[1,16,3,16],[1,17,2,17]]}
["国内名称","推广命名","版本","图片Pic","官方指导价","系列\nSeries","型号\nModel","车型代码\nModelCode","发动机代码\nEngine Code ","主要配置描述\nMajor Configurations Description","\nFOB价格\nFOB Price (RMB)","\nFCA价格\nFCA Price (RMB)","\nEXW价格\nEXW Price (RMB)","\nFOB价格\nFOB Price (USD)","\nFCA价格\nFCA Price (USD)","\nEXW价格\nEXW Price (USD)","图片Pic"]
["五菱宏光v","五菱宏光V 1.5L 6MT 劲取版","五菱宏光V-1.5L-6MT-劲取版-7座-客车-液压助力  ",{"$f":"_xlfn.DISPIMG(\"ID_6EE3128F49894FF197AB2D1A67B24C94\",1)","v":"=DISPIMG(\"ID_6EE3128F49894FF197AB2D1A67B24C94\",1)"},46800,"宏光V\nCN110V Passenger","LZW6448GBU\n国Ⅵ China Ⅵ\n国六b RDE","E72C","UW6\n(1.485L)\n6MT","LV0（7座，空调G，前电动/中手动门窗，EPS, ABS+EBD，铁车轮，胎压监测，中控门锁，遥控钥匙，中排2连体座，收音机+USB，后钢板弹簧非独立悬架）  \nLV0 (7 Seats, A/C-G, Front Power and Middle Manual Window, EPS, ABS+EBD, Steel Wheel, TPMS, Power Door Lock, Remote Key,  2+0 Bench Seat in the 2nd Row, Radio+USB, Rear Leaf Spring Non Isolated Rear Suspension)",42040.8163265306,41673.4693877551,40428.5714285714,6110.58376839108,6057.19031798766,5876.24584717608,{"$f":"_xlfn.DISPIMG(\"ID_A01C4AF336974EDC9F416634C805B84B\",1)","v":"=DISPIMG(\"ID_A01C4AF336974EDC9F416634C805B84B\",1)"},{"$f":"_xlfn.DISPIMG(\"ID_A01C4AF336974EDC9F416634C805B84B\",1)","v":"=DISPIMG(\"ID_A01C4AF336974EDC9F416634C805B84B\",1)"}]
[null,"五菱宏光V 1.5L 6MT 劲享版","五菱宏光V-1.5L-6MT-劲享版-7座-客车-电动助力",{"$f":"_xlfn.DISPIMG(\"ID_545629754529422CAE7E2BB7820A207E\",1)","v":"=DISPIMG(\"ID_545629754529422CAE7E2BB7820A207E\",1)"},52800,null,null,"E72E",null,"LV1（7座，顶置空调H，前电动/中手动门窗，EPS, ABS+EBD，铝合金车轮，胎压监测，中控门锁，遥控钥匙，中排2独立座椅，收音机+USB，后钢板弹簧非独立悬架）  \nLV1 (7 Seats, A/C-H, Front Power and Middle Manual Window, EPS, ABS+EBD, Alloy Wheel, TPMS, Power Door Lock, Remote Key, 2 Captain Seats in the 2nd Row, Radio+USB, Rear Leaf Spring Non Isolated Rear Suspension)",43571.4285714286,43204.0816326531,41959.1836734694,6333.05647840532,6279.6630280019,6098.71855719032]
[null,"五菱宏光V 1.5L 6MT 劲取版","五菱宏光V-1.5L-6MT-劲取版-2座-客车-液压助力  -封窗版",{"$f":"_xlfn.DISPIMG(\"ID_E50E067192D8419288A74A4AECBC8856\",1)","v":"=DISPIMG(\"ID_E50E067192D8419288A74A4AECBC8856\",1)"},47900,"宏光V厢式运输车\nCN110V Cargo","LZW5021XXYGBUA\n国Ⅵ China Ⅵ\n国六b RDE","E6YM",null,"LV0（2座，前置空调G，前电动门窗，EPS，ABS+EBD，铁车轮，隔离栏，中控门锁，收音机+USB，后钢板弹簧非独立悬架）  \nLV0 (2 Seats, A/C-G, Front Power Window, EPS, ABS+EBD, Steel Wheel, Cab Shelter, Power Door Lock, Radio+USB, Rear Leaf Spring Non Isolated Rear Suspension)",41836.7346938776,41469.387755102,40224.4897959184,6080.92074038918,6027.52728998576,5846.58281917418,null,{"$f":"_xlfn.DISPIMG(\"ID_5685A633097D4FE8AACA5107F9A1B800\",1)","v":"=DISPIMG(\"ID_5685A633097D4FE8AACA5107F9A1B800\",1)"}]

{"sheet":"新宏光S客车","index":3,"n_rows":4,"n_cols":18,"rows_kept":4,"cut":false,"hidden":false,"merged":[[1,0,3,0],[1,5,3,5],[1,6,3,6],[1,8,3,8],[1,17,3,17]]}
["国内名称","推广命名","版本","图片Pic","官方指导价","系列\nSeries","型号\nModel","车型代码\nModelCode","发动机代码\nEngine Code ","主要配置描述\nMajor Configurations Description","\nFOB价格\nFOB Price (RMB)","\nFCA价格\nFCA Price (RMB)","\nEXW价格\nEXW Price (RMB)","\nFOB价格\nFOB Price (USD)","\nFCA价格\nFCA Price (USD)","\nEXW价格\nEXW Price (USD)","图片Pic"]
["新宏光S客车","五菱宏光S 1.5L 6MT 基本型","1.5L-MT挡-基本型",{"$f":"_xlfn.DISPIMG(\"ID_3657C33A658A43318B9D0C98A817AB20\",1)","v":"=DISPIMG(\"ID_3657C33A658A43318B9D0C98A817AB20\",1)"},53900,"新宏光S客车\nCN115 Passenger","LZW6449GBU\n国Ⅵ China Ⅵ\n国六b RDE","AUCT","UY6\n(1.485L)\n6MT","LV0（7座，前置空调G，前电动门窗，EPS，ABS+EBD，前盘后鼓，铁车轮，胎压监测，无气囊，中控门锁，中排2连体座椅，织物座椅，收音机+USB，钢板弹簧非独立悬架）\nLV0 (7 Seats, A/C-G, Front Power Windows, EPS, ABS+EBD, Front Disk and Rear Drum, Steel Wheel, TPMS, w/o Airbag, Power Door Lock,  2+0 Bench Seat, Textile Seats, Radio+USB, Leaf Spring Non Isolated Rear Suspension)",44285.7142857143,43918.3673469388,43071.4285714286,6436.87707641196,6383.48362600854,6260.38205980067,{"$f":"_xlfn.DISPIMG(\"ID_374EB16EFC454A2680F35F806EE3373D\",1)","v":"=DISPIMG(\"ID_374EB16EFC454A2680F35F806EE3373D\",1)"},{"$f":"_xlfn.DISPIMG(\"ID_7FF1E4C8F28944EC9F1C75C3D25EE868\",1)","v":"=DISPIMG(\"ID_7FF1E4C8F28944EC9F1C75C3D25EE868\",1)"}]
[null,"新五菱宏光S 1.5L 6MT 标准型","1.5L-MT挡-标准型",{"$f":"_xlfn.DISPIMG(\"ID_91FB82FFD2754CA882C4026DD4B64D6F\",1)","v":"=DISPIMG(\"ID_91FB82FFD2754CA882C4026DD4B64D6F\",1)"},56900,null,null,"AUD9",null,"LV1（7座，顶置空调H，前中门电动门窗，EPS，ABS+EBD，前盘后鼓，铝合金车轮，胎压监测，无气囊，中控门锁，中排2独立座椅，织物座椅，收音机+USB，螺旋弹簧五连杆式半独立悬架）  \nLV1 (7 Seats, A/C-H, Front and Middle Power Windows, EPS, ABS+EBD, Front Disk and Rear Drum, Alloy Wheel, TPMS, w/o Airbag, Power Door Lock, 2 Captain Seats in the 2nd Row, Textile Seats, Radio+USB, 5-link Coil Spring Half Isolate Rear Suspension)",47448.9795918367,47081.6326530612,46234.693877551,6896.65401044139,6843.26056003797,6720.15899383009,{"$f":"_xlfn.DISPIMG(\"ID_374EB16EFC454A2680F35F806EE3373D\",1)","v":"=DISPIMG(\"ID_374EB16EFC454A2680F35F806EE3373D\",1)"}]
[null,"新五菱宏光S 1.5L 6MT 豪华型","1.5L-MT挡-舒适型",{"$f":"_xlfn.DISPIMG(\"ID_80BA260BC9D142429EE0A90842F8639D\",1)","v":"=DISPIMG(\"ID_80BA260BC9D142429EE0A90842F8639D\",1)"},59900,null,null,"AUMZ",null,"LV2（7座，顶置空调H，前中门电动门窗，EPS，ABS+EBD，前盘后鼓，铝合金车轮，胎压监测，驾驶员气囊，倒车雷达，中控门锁，遥控钥匙，定速巡航，中排2独立座椅，人造皮革座椅，可视倒车+USB+SD卡+收音机+蓝牙+SSPLink手机互联，螺旋弹簧五连杆式半独立悬架） \nLV2 (7 Seats, A/C-H, Front and Middle Power Windows, EPS, ABS+EBD, Front Disk and Rear Drum, Alloy Wheel, TPMS, Driver Airbag, Parking Sensors, Power Door Lock, Remote Key, Cruise Control, 2 Captain Seats in the 2nd Row, Artificial Leather Seats, Parking Video+USB+SD Card+Radio+Bluetooth+Mobile Interconnection, 5-link Coil Spring Half Isolate Rear Suspension)",49285.7142857143,48918.3673469388,48071.4285714286,7163.62126245847,7110.22781205505,6987.12624584718,{"$f":"_xlfn.DISPIMG(\"ID_374EB16EFC454A2680F35F806EE3373D\",1)","v":"=DISPIMG(\"ID_374EB16EFC454A2680F35F806EE3373D\",1)"}]

{"sheet":"星光560 ","index":4,"n_rows":5,"n_cols":18,"rows_kept":5,"cut":false,"hidden":false,"merged":[[1,5,2,5],[1,17,2,17]]}
["国内名称","推广命名","版本","图片Pic","官方指导价","系列\nSeries","型号\nModel","车型代码\nModelCode","发动机代码\nEngine Code ","主要配置描述\nMajor Configurations Description","\nFOB价格\nFOB Price (RMB)","\nFCA价格\nFCA Price (RMB)","\nEXW价格\nEXW Price (RMB)","\nFOB价格\nFOB Price (USD)","\nFCA价格\nFCA Price (USD)","\nEXW价格\nEXW Price (USD)","图片Pic"]
["星光560 燃油版","五菱星光560 1.5T 6MT 舒适型-5座","1.5T-6MT-手动挡-舒适型",{"$f":"_xlfn.DISPIMG(\"ID_C70A85683C794F6E9E806CD7296568DA\",1)","v":"=DISPIMG(\"ID_C70A85683C794F6E9E806CD7296568DA\",1)"},62800,"星光560 燃油版\nF520S ICE","LZW6470GQUA8","VS02","1.5T 6MT","LV0+（5座，单蒸空调G，EPS，ABS+EBD，前盘后盘，铁车轮，胎压监测，双气囊，倒车雷达，中控门锁，织物座椅，碳黑+胡桃棕内饰，2个扬声器，前麦弗逊式后独立悬架） \nLV0+ (5 Seats, A/C-G, EPS, ABS+EBD, Front and Rear Disk, Steel Wheel, TPMS,  Dual Airbag, Rear Parking Sensors, Power Door Lock, Fabric Seats, Black + Brown Interior, 2 Speakers, Front McPherson Strut Rear Independent Suspension)",66428.5714285714,66061.2244897959,64224.4897959184,9655.10204081633,9602.04081632653,9334.69387755102,{"$f":"_xlfn.DISPIMG(\"ID_ABD92BAA49C842B49A3C19AF0F006C8A\",1)","v":"=DISPIMG(\"ID_ABD92BAA49C842B49A3C19AF0F006C8A\",1)"},{"$f":"_xlfn.DISPIMG(\"ID_1B7EAB4DCF0A4A06AA1F4B699CAE99B0\",1)","v":"=DISPIMG(\"ID_1B7EAB4DCF0A4A06AA1F4B699CAE99B0\",1)"}]
["星光560 燃油版","五菱星光560 1.5T CVT 精英型-5座","1.5T-CVT自动-精英型",{"$f":"_xlfn.DISPIMG(\"ID_61984FD8963B4065B4388CDE88B3DE8F\",1)","v":"=DISPIMG(\"ID_61984FD8963B4065B4388CDE88B3DE8F\",1)"},75800,null,"LZW6470KHUA6","VS03","1.5T CVT","LV1（5座，单蒸空调G，EPS，ESC+EBD+AUTOHOLD，前盘后盘，铝合金车轮，胎压监测，定速巡航，双气囊，前排侧气囊，倒车雷达，中控门锁，皮革座椅，碳黑+胡桃棕内饰，12.8寸中控屏+蓝牙+收音+USB独立+可视倒车，6个扬声器，前麦弗逊式后独立悬架） \nLV1 (5 Seats, A/C-G, EPS, ESC+EBD+AUTOHOLD, Front and Rear Disk, Alloy Wheel, TPMS,  Cruise control, Dual Airbag, Front Side Airbag, Rear Parking Sensors, Power Door Lock, Leather Seats, Black + Brown Interior, 12.8 inch touchable Screen+Remote Control+Bluetooth Key+Radio+USB+Parking Video, 6 Speakers, Front McPherson Strut Rear Independent Suspension)",76938.7755102041,76571.4285714286,74734.693877551,11182.6530612245,11129.5918367347,10862.2448979592,{"$f":"_xlfn.DISPIMG(\"ID_73D3103D3B7F428FA071798EC29D80D3\",1)","v":"=DISPIMG(\"ID_73D3103D3B7F428FA071798EC29D80D3\",1)"}]
["星光560混动版","五菱星光560 125km 豪华型-5座","插电混动125km 豪华型",{"$f":"_xlfn.DISPIMG(\"ID_4FAB9D848E1F4375BEDA147BD4B9C61F\",1)","v":"=DISPIMG(\"ID_4FAB9D848E1F4375BEDA147BD4B9C61F\",1)"},91800,"星光560 PHEV\nF520S PHEV","LZW6470KEUPHEVA5","VS05","续航：125公里\nCLTC mileage:\n125 KM","LV1（5座，单蒸空调G，EPS，ESC+EBD+AUTOHOLD，前盘后盘，铝合金车轮，胎压监测，定速巡航，双气囊，前排侧气囊，倒车雷达，中控门锁，皮革座椅，碳黑+胡桃棕内饰，直流快充，12.8寸中控屏+蓝牙+收音+USB独立+可视倒车，6个扬声器，前麦弗逊式后独立悬架） \nLV1 (5 Seats, A/C-G, EPS, ESC+EBD+AUTOHOLD, Front and Rear Disk, Alloy Wheel, TPMS,  Cruise control, Dual Airbag, Front Side Airbag, Rear Parking Sensors, Power Door Lock, Leather Seats, Black + Brown Interior, DC Fast Charge, 12.8 inch touchable Screen+Remote Control+Bluetooth Key+Radio+USB+Parking Video, 6 Speakers, Front McPherson Strut Rear independent suspension)",94285.7142857143,93918.3673469388,92081.6326530612,13704.0816326531,13651.0204081633,13383.6734693878,{"$f":"_xlfn.DISPIMG(\"ID_73D3103D3B7F428FA071798EC29D80D3\",1)","v":"=DISPIMG(\"ID_73D3103D3B7F428FA071798EC29D80D3\",1)"},{"$f":"_xlfn.DISPIMG(\"ID_09A31B94214448EF88207E7243F265B8\",1)","v":"=DISPIMG(\"ID_09A31B94214448EF88207E7243F265B8\",1)"}]
["星光560  纯电版","五菱星光560 500km 豪华型-5座","纯电500km豪华型",{"$f":"_xlfn.DISPIMG(\"ID_3E03A895E596451C8C4AA7B62FEE6884\",1)","v":"=DISPIMG(\"ID_3E03A895E596451C8C4AA7B62FEE6884\",1)"},98800,"星光560 EV\nF520S EV","LZW6470BEVA4","VS07","续航：500公里\nCLTC mileage:\n500 KM","LV1（5座，单蒸空调G，EPS，ESC+EBD+AUTOHOLD，前盘后盘，铝合金车轮，胎压监测，定速巡航，双气囊，前排侧气囊，倒车雷达，中控门锁，皮革座椅，碳黑+胡桃棕内饰，直流快充，12.8寸中控屏+蓝牙+收音+USB独立+可视倒车，6个扬声器，前麦弗逊式后独立悬架） \nLV1 (5 Seats, A/C-G, EPS, ESC+EBD+AUTOHOLD, Front and Rear Disk, Alloy Wheel, TPMS,  Cruise control, Dual Airbag, Front Side Airbag, Rear Parking Sensors, Power Door Lock, Leather Seats, Black + Brown Interior, DC Fast Charge, 12.8 inch touchable Screen+Remote Control+Bluetooth Key+Radio+USB+Parking Video, 6 Speakers, Front McPherson Strut Rear independent suspension)",98877.5510204082,98510.2040816326,96673.4693877551,14371.4285714286,14318.3673469388,14051.0204081633,{"$f":"_xlfn.DISPIMG(\"ID_669A6E3F9F6F4D8A9185DD8E458FBD5E\",1)","v":"=DISPIMG(\"ID_669A6E3F9F6F4D8A9185DD8E458FBD5E\",1)"},{"$f":"_xlfn.DISPIMG(\"ID_A7F04E61EAF24FECB61C4E204C2526CD\",1)","v":"=DISPIMG(\"ID_A7F04E61EAF24FECB61C4E204C2526CD\",1)"}]

{"sheet":"星光730","index":5,"n_rows":8,"n_cols":18,"rows_kept":8,"cut":false,"hidden":false,"merged":[[4,0,5,0],[6,0,7,0],[1,5,3,5],[4,5,5,5],[6,5,7,5],[1,6,3,6],[4,6,5,6],[6,6,7,6],[2,8,3,8],[4,8,5,8],[6,8,7,8],[1,17,3,17]]}
["国内名称","推广命名","版本","图片Pic","官方指导价","系列\nSeries","型号\nModel","车型代码\nModelCode","发动机代码\nEngine Code ","主要配置描述\nMajor Configurations Description","\nFOB价格\nFOB Price (RMB)","\nFCA价格\nFCA Price (RMB)","\nEXW价格\nEXW Price (RMB)","\nFOB价格\nFOB Price (USD)","\nFCA价格\nFCA Price (USD)","\nEXW价格\nEXW Price (USD)","图片Pic"]
["星光730 燃油版","五菱星光730 1.5T 6MT 舒适型","1.5L-6MT挡-舒适型",{"$f":"_xlfn.DISPIMG(\"ID_1A4771E9F87244DCB6FB2AAB1849CC8A\",1)","v":"=DISPIMG(\"ID_1A4771E9F87244DCB6FB2AAB1849CC8A\",1)"},73800,"星光730 燃油版\nF520M ICE","LZW6490KHUA4","M502","1.5L MT","LV0（7座，前置空调G，EPS，ABS+EBD，前盘后盘，铁车轮，胎压监测，双气囊，中控门锁，后排手动滑移门，织物座椅，碳黑+胡桃棕内饰，收音机+USB，2扬声器，前麦弗逊式后独立悬架）\nLV0 (7 Seats, A/C-G, EPS, ABS+EBD, Front & Rear Disk, Steel Wheel, TPMS, Dual Airbag, Power Door Lock,  Rear Manual Sliding Door, Fabric Seats, Black + Brown Interior, Radio+USB, 2 Speakers, Front McPherson Strut Rear independent suspension)",72244.8979591837,71877.5510204082,70142.8571428571,10500.711912672,10447.3184622686,10195.1827242525,{"$f":"_xlfn.DISPIMG(\"ID_47FCD14CB156467EB4C34232F14C40B3\",1)","v":"=DISPIMG(\"ID_47FCD14CB156467EB4C34232F14C40B3\",1)"},{"$f":"_xlfn.DISPIMG(\"ID_6E140B7B3BE6487CAF1601932079A6EC\",1)","v":"=DISPIMG(\"ID_6E140B7B3BE6487CAF1601932079A6EC\",1)"}]
["星光730 燃油版","五菱星光730 1.5T CVT 精英型","1.5T-CVT自动-精英型 手动滑门",{"$f":"_xlfn.DISPIMG(\"ID_F9C39AD221C442B5BE7FD64FB2E4CD72\",1)","v":"=DISPIMG(\"ID_F9C39AD221C442B5BE7FD64FB2E4CD72\",1)"},83800,null,null,"M509","1.5L CVT","LV1（7座，双蒸空调H，EPS，ABS+EBD，前盘后盘，铝合金车轮，胎压监测，定速巡航，双气囊，前排侧气囊，倒车雷达，中控门锁，后排手动滑移门，皮革座椅，碳黑+胡桃棕内饰，12.8寸中控屏+蓝牙+收音+USB独立+360可视可视倒车，4个扬声器，前麦弗逊式后独立悬架） \nLV1 (7 Seats, A/C-H, EPS, ABS+EBD, Front and Rear Disk, Alloy Wheel, TPMS,  Cruise control, Dual Airbag, Front Side Airbag, Rear Parking Sensors, Power Door Lock, Rear Right Manual Sliding Door, Leather Seats, Black + Brown Interior, 12.8 inch touchable Screen+Remote Control+Bluetooth Key+Radio+USB+Parking Video, 4 Speakers, Front McPherson Strut Rear Independent Suspension)",81836.7346938776,81469.387755102,79734.693877551,11894.8742287613,11841.4807783579,11589.3450403417,"=DISPIMG(\"ID_47FCD14CB156467EB4C34232F14C40B3\",1)"]
["星光730 燃油版","五菱星光730 1.5T CVT 精英型","1.5T-CVT自动-精英型 选装电动滑门",{"$f":"_xlfn.DISPIMG(\"ID_61AF70618BE34A76B03B9878E7ED485D\",1)","v":"=DISPIMG(\"ID_61AF70618BE34A76B03B9878E7ED485D\",1)"},86800,null,null,"M50C",null,"LV1（7座，双蒸空调H，EPS，ABS+EBD，前盘后盘，铝合金车轮，胎压监测，定速巡航，双气囊，前排侧气囊，倒车雷达，中控门锁，后排右侧电动滑移门，皮革座椅，铠甲灰+杏仁棕内饰，12.8寸中控屏+蓝牙+收音+USB独立+360可视可视倒车，4个扬声器，前麦弗逊式后独立悬架） \nLV1 (7 Seats, A/C-H, EPS, ABS+EBD, Front and Rear Disk, Alloy Wheel, TPMS,  Cruise control, Dual Airbag, Front Side Airbag, Rear Parking Sensors, Power Door Lock, Rear Right Electric Sliding Door, Leather Seats, Grey + Brown Interior, 12.8 inch touchable Screen+Remote Control+Bluetooth Key+Radio+USB+Parking Video, 4 Speakers, Front McPherson Strut Rear Independent Suspension)",84897.9591836735,84530.612244898,82795.9183673469,12339.8196487897,12286.4261983863,12034.2904603702,"=DISPIMG(\"ID_47FCD14CB156467EB4C34232F14C40B3\",1)"]
["星光730混动版","五菱星光730 125km 豪华型","插电混动125KM -   手动滑门",{"$f":"_xlfn.DISPIMG(\"ID_BDC3ABEDD2F943B98A973FD80C9A4B83\",1)","v":"=DISPIMG(\"ID_BDC3ABEDD2F943B98A973FD80C9A4B83\",1)"},103800,"星光730 PHEV\nF520M PHEV","LZW6490KEUPHEVA3","M505","续航：125公里\nCLTC mileage:\n125 KM","LV1（7座，双蒸空调H，EPS，ABS+EBD，前盘后盘，铝合金车轮，胎压监测，定速巡航，双气囊，前排侧气囊，倒车雷达，中控门锁，后排手动滑移门，皮革座椅，碳黑+胡桃棕内饰，直流快充，12.8寸中控屏+蓝牙+收音+USB独立+360可视可视倒车，4个扬声器，前麦弗逊式后独立悬架） \nLV1 (7 Seats, A/C-H, EPS, ABS+EBD, Front and Rear Disk, Alloy Wheel, TPMS,  Cruise control, Dual Airbag, Front Side Airbag, Rear Parking Sensors, Power Door Lock, Rear Manual Sliding Door, Leather Seats, Black + Brown Interior, DC Fast Charge, 12.8 inch Screen+Bluetooth+Radio+USB+360Parking Video, 4 Speakers, Front McPherson Strut Rear independent suspension)",99795.9183673469,99428.5714285714,97693.8775510204,14505.2206929283,14451.8272425249,14199.6915045088,"=DISPIMG(\"ID_47FCD14CB156467EB4C34232F14C40B3\",1)"]
[null,"五菱星光730 125km 豪华型","插电混动125KM     选装电动滑门",{"$f":"_xlfn.DISPIMG(\"ID_EAE2CADCB3F044C292EF8F100E801BFC\",1)","v":"=DISPIMG(\"ID_EAE2CADCB3F044C292EF8F100E801BFC\",1)"},106800,null,null,"M507",null,"LV1（7座，双蒸空调H，EPS，ABS+EBD，前盘后盘，铝合金车轮，胎压监测，定速巡航，双气囊，前排侧气囊，倒车雷达，中控门锁，后排右侧电动滑移门，皮革座椅，碳黑+胡桃棕内饰，直流快充，12.8寸中控屏+蓝牙+收音+USB独立+360可视可视倒车，4个扬声器，前麦弗逊式后独立悬架） \nLV1 (7 Seats, A/C-H, EPS, ABS+EBD, Front and Rear Disk, Alloy Wheel, TPMS,  Cruise control, Dual Airbag, Front Side Airbag, Rear Parking Sensors, Power Door Lock, Rear Right Electric Sliding Door, Leather Seats, Black + Brown Interior, DC Fast Charge, 12.8 inch Screen+Bluetooth+Radio+USB+360Parking Video, 4 Speakers, Front McPherson Strut Rear independent suspension)",102857.142857143,102489.795918367,100755.102040816,14950.1661129568,14896.7726625534,14644.6369245373,"=DISPIMG(\"ID_47FCD14CB156467EB4C34232F14C40B3\",1)"]
["星光730纯电版","五菱星光730 500km 豪华型","500km纯电豪华版    手动滑门",{"$f":"_xlfn.DISPIMG(\"ID_E72BFEB5AEF3494CBBA92FCB7FD92846\",1)","v":"=DISPIMG(\"ID_E72BFEB5AEF3494CBBA92FCB7FD92846\",1)"},109800,"星光730 EV\nF520M EV","LZW6490BEVA1","M503","续航：500公里\nCLTC mileage:\n500 KM","LV1（7座，双蒸空调H，EPS，ABS+EBD，前盘后盘，铝合金车轮，胎压监测，定速巡航，双气囊，前排侧气囊，倒车雷达，中控门锁，后排手动滑移门，皮革座椅，碳黑+胡桃棕内饰，直流快充，12.8寸中控屏+蓝牙+收音+USB独立+360可视可视倒车，4个扬声器，前麦弗逊式后独立悬架） \nLV1 (7 Seats, A/C-H, EPS, ABS+EBD, Front and Rear Disk, Alloy Wheel, TPMS,  Cruise control, Dual Airbag, Front Side Airbag, Rear Parking Sensors, Power Door Lock, Rear Manual Sliding Door, Leather Seats, Black + Brown Interior, DC Fast Charge, 12.8 inch Screen+Bluetooth+Radio+USB+360Parking Video, 4 Speakers, Front McPherson Strut Rear independent suspension)",100000,99632.6530612245,97897.9591836735,14534.8837209302,14481.4902705268,14229.3545325107,{"$f":"_xlfn.DISPIMG(\"ID_35034E322234477487F5DD5E5AF062C0\",1)","v":"=DISPIMG(\"ID_35034E322234477487F5DD5E5AF062C0\",1)"}]
[null,"五菱星光730 500km 豪华型","500km纯电豪华版    选装电动滑门",{"$f":"_xlfn.DISPIMG(\"ID_DC2099908A664620B6FAEA666F668550\",1)","v":"=DISPIMG(\"ID_DC2099908A664620B6FAEA666F668550\",1)"},112800,null,null,"M504",null,"LV1（7座，双蒸空调H，EPS，ABS+EBD，前盘后盘，铝合金车轮，胎压监测，定速巡航，双气囊，前排侧气囊，倒车雷达，中控门锁，后排右侧电动滑移门，皮革座椅，碳黑+胡桃棕内饰，直流快充，12.8寸中控屏+蓝牙+收音+USB独立+360可视可视倒车，4个扬声器，前麦弗逊式后独立悬架） \nLV1 (7 Seats, A/C-H, EPS, ABS+EBD, Front and Rear Disk, Alloy Wheel, TPMS,  Cruise control, Dual Airbag, Front Side Airbag, Rear Parking Sensors, Power Door Lock, Rear Right Electric Sliding Door, Leather Seats, Black + Brown Interior, DC Fast Charge, 12.8 inch Screen+Bluetooth+Radio+USB+360Parking Video, 4 Speakers, Front McPherson Strut Rear independent suspension)",103061.224489796,102693.87755102,100959.183673469,14979.8291409587,14926.4356905553,14674.2999525392,{"$f":"_xlfn.DISPIMG(\"ID_35034E322234477487F5DD5E5AF062C0\",1)","v":"=DISPIMG(\"ID_35034E322234477487F5DD5E5AF062C0\",1)"}]

{"sheet":"缤果","index":6,"n_rows":11,"n_cols":18,"rows_kept":11,"cut":false,"hidden":false,"merged":[[1,5,3,5],[4,5,5,5],[6,5,9,5],[1,6,2,6],[6,6,7,6],[1,8,2,8],[6,8,7,8],[8,8,9,8]]}
["国内名称","推广命名","版本","图片Pic","官方指导价","系列\nSeries","型号\nModel","车型代码\nModelCode","发动机代码\nEngine Code ","主要配置描述\nMajor Configurations Description","\nFOB价格\nFOB Price (RMB)","\nFCA价格\nFCA Price (RMB)","\nEXW价格\nEXW Price (RMB)","\nFOB价格\nFOB Price (USD)","\nFCA价格\nFCA Price (USD)","\nEXW价格\nEXW Price (USD)","图片Pic"]
["2025款缤果英文版","2025款 五菱缤果 333km 灵犀互联款","333km灵犀互联版",{"$f":"_xlfn.DISPIMG(\"ID_27498FB155AC4FB7B364491830C6528C\",1)","v":"=DISPIMG(\"ID_27498FB155AC4FB7B364491830C6528C\",1)"},75800,"缤果25款  EV 英文版\nE261 EV 2025 version\nEnglish Version","LZW7007BEVC6","2AHG","续航：333公里\nCLTC mileage:\n333 KM","LV1（4座，空调G，电动门窗，EPS，ABS+EBD+ESC，前盘后盘，钢车轮，胎压监测，定速巡航，双气囊，前排侧气囊，主驾座椅手动调节，可视倒车雷达，LED灯，中控门锁，遥控钥匙，无钥匙启动，皮质座椅，果壳棕内饰，倒车影像+蓝牙，电池包加热， 4个扬声器， 前麦弗逊式独立悬架后扭力梁式悬挂，直流快充）\nLV1 (4 Seats, A/C-G,  Power Windows, EPS, ABS+EBD+ESC, Front and Rear Disk , Steel Wheel, TPMS, Cruise Control, Dual Airbag, Front Side Airbag, Driver seat manual adjust, Visible Reversing Radar, LED Light, Power Door Lock, Remote Key, PVC Seats, Brown Interior, Parking Camera+Bluetooth, Battery Pack with Heating, 4 Speakers, Front McPherson Strut Suspension  Rear Torsion Beam Suspension, DC fast charging)",64387.7551020408,64020.4081632653,62642.8571428571,9358.68533459896,9305.29188419554,9105.06644518273,{"$f":"_xlfn.DISPIMG(\"ID_B37E57195D9E4CAB8B27918A2A495D36\",1)","v":"=DISPIMG(\"ID_B37E57195D9E4CAB8B27918A2A495D36\",1)"}]
["2025款缤果英文版","2025款 五菱缤果 333km 灵犀尊享款","333km灵犀尊享版",{"$f":"_xlfn.DISPIMG(\"ID_D8BFF04CA7E04A2DBF62D42240534222\",1)","v":"=DISPIMG(\"ID_D8BFF04CA7E04A2DBF62D42240534222\",1)"},80800,null,null,"2AHV",null,"LV2（4座，空调G，电动门窗，EPS，ABS+EBD+ESC，前盘后盘，钢车轮，胎压监测，定速巡航，双气囊，前排侧气囊，主驾座椅电动调节，可视倒车雷达，LED灯，中控门锁，遥控钥匙，无钥匙启动，皮质座椅，果壳棕内饰，10.25寸液晶屏+倒车影像+蓝牙，360全景影像，电池包加热， 4个扬声器， 前麦弗逊式独立悬架后扭力梁式悬挂，直流快充）\nLV2 (4 Seats, A/C-G, Power Windows, EPS, ABS+EBD+ESC, Front and Rear Disk , Steel Wheel, TPMS, Cruise Control,  Dual Airbag, Front Side Airbag, Driver seat auto adjust, Visible Reversing Radar, LED Light, Power Door Lock, Remote Key, PVC Seats, Brown Interior, 10.25 inch Screen+Parking Camera+Bluetooth, 360 View, Battery Pack with Heating, 4 Speakers, Front McPherson Strut Suspension  Rear Torsion Beam Suspension，DC fast charging)",73877.5510204082,73510.2040816326,72132.6530612245,10738.0161366872,10684.6226862838,10484.397247271,"=DISPIMG(\"ID_B37E57195D9E4CAB8B27918A2A495D36\",1)",{"$f":"_xlfn.DISPIMG(\"ID_26998E3EC1A54986A29A3555DF9AF021\",1)","v":"=DISPIMG(\"ID_26998E3EC1A54986A29A3555DF9AF021\",1)"}]
["2025款缤果英文版","五菱缤果 灵犀尊享款 410km","410km灵犀尊享版","=DISPIMG(\"ID_D8BFF04CA7E04A2DBF62D42240534222\",1)",84800,null,"LZW7007EVA3","2AHR","续航：410公里\nCLTC mileage:\n410KM","LV2（4座，空调G，电动门窗，EPS，ABS+EBD+ESC，前盘后盘，钢车轮，胎压监测，定速巡航，双气囊，前排侧气囊，主驾座椅电动调节，可视倒车雷达，LED灯，中控门锁，遥控钥匙，无钥匙启动，皮质座椅，果壳棕内饰，10.25寸液晶屏+倒车影像+蓝牙，360全景影像，电池包加热， 4个扬声器， 前麦弗逊式独立悬架后扭力梁式悬挂，直流快充）\nLV2 (4 Seats, A/C-G, Power Windows, EPS, ABS+EBD+ESC, Front and Rear Disk , Steel Wheel, TPMS, Cruise Control,  Dual Airbag, Front Side Airbag, Driver seat auto adjust, Visible Reversing Radar, LED Light, Power Door Lock, Remote Key, PVC Seats, Brown Interior, 10.25 inch Screen+Parking Camera+Bluetooth, 360 View, Battery Pack with Heating, 4 Speakers, Front McPherson Strut Suspension  Rear Torsion Beam Suspension，DC fast charging)",75306.1224489796,74938.7755102041,73561.2244897959,10945.6573327005,10892.2638822971,10692.0384432843,"=DISPIMG(\"ID_B37E57195D9E4CAB8B27918A2A495D36\",1)"]
["2025款缤果英文欧标充电","2025款 五菱缤果 333km 灵犀尊享款","333km灵犀尊享版","=DISPIMG(\"ID_D8BFF04CA7E04A2DBF62D42240534222\",1)",80800,"缤果25款  EV 英文版（欧标充电）\nE261 EV 2025 version\nEnglish Version (Europe charging standard)","LZW7007BEVC6","2AHX","续航：333公里\nCLTC mileage:\n333 KM","LV2（4座，空调G，电动门窗，EPS，ABS+EBD+ESC，前盘后盘，钢车轮，胎压监测，定速巡航，双气囊，前排侧气囊，主驾座椅电动调节，可视倒车雷达，LED灯，中控门锁，遥控钥匙，无钥匙启动，皮质座椅，果壳棕内饰，10.25寸液晶屏+倒车影像+蓝牙，360全景影像，电池包加热， 4个扬声器， 前麦弗逊式独立悬架后扭力梁式悬挂，直流快充-欧标充电）\nLV2 (4 Seats, A/C-G, Power Windows, EPS, ABS+EBD+ESC, Front and Rear Disk , Steel Wheel, TPMS, Cruise Control,  Dual Airbag, Front Side Airbag, Driver seat auto adjust, Visible Reversing Radar, LED Light, Power Door Lock, Remote Key, PVC Seats, Brown Interior, 10.25 inch Screen+Parking Camera+Bluetooth, 360 View, Battery Pack with Heating, 4 Speakers, Front McPherson Strut Suspension  Rear Torsion Beam Suspension，DC fast charging - Europe charging standard)",74693.8775510204,74326.5306122449,72948.9795918367,10856.6682486948,10803.2747982914,10603.0493592786,"=DISPIMG(\"ID_B37E57195D9E4CAB8B27918A2A495D36\",1)"]
["2025款缤果英文欧标充电","五菱缤果 灵犀尊享款 410km","410km灵犀尊享版","=DISPIMG(\"ID_D8BFF04CA7E04A2DBF62D42240534222\",1)",84800,null,"LZW7007EVA3","2AHT","续航：410公里\nCLTC mileage:\n410 KM","LV2（4座，空调G，电动门窗，EPS，ABS+EBD+ESC，前盘后盘，钢车轮，胎压监测，定速巡航，双气囊，前排侧气囊，主驾座椅电动调节，可视倒车雷达，LED灯，中控门锁，遥控钥匙，无钥匙启动，皮质座椅，果壳棕内饰，10.25寸液晶屏+倒车影像+蓝牙，360全景影像，电池包加热， 4个扬声器， 前麦弗逊式独立悬架后扭力梁式悬挂，直流快充-欧标充电）\nLV2 (4 Seats, A/C-G, Power Windows, EPS, ABS+EBD+ESC, Front and Rear Disk , Steel Wheel, TPMS, Cruise Control,  Dual Airbag, Front Side Airbag, Driver seat auto adjust, Visible Reversing Radar, LED Light, Power Door Lock, Remote Key, PVC Seats, Brown Interior, 10.25 inch Screen+Parking Camera+Bluetooth, 360 View, Battery Pack with Heating, 4 Speakers, Front McPherson Strut Suspension  Rear Torsion Beam Suspension，DC fast charging - Europe charging standard)",76122.4489795918,75755.1020408163,74377.5510204082,11064.3094447081,11010.9159943047,10810.6905552919,"=DISPIMG(\"ID_B37E57195D9E4CAB8B27918A2A495D36\",1)"]
["缤果s","五菱缤果S 尊享款 325km","325km尊享版（拼色顶+1000",{"$f":"_xlfn.DISPIMG(\"ID_F586933024A6441C8D25BB1BCED8E058\",1)","v":"=DISPIMG(\"ID_F586933024A6441C8D25BB1BCED8E058\",1)"},66800,"缤果S 中文版\nE261 MCE ","LZW7007BEVC8","260N","续航：325公里\nCLTC mileage:\n325 KM","LV1（5座，空调G，电动门窗，EPS，ABS+ESC，铁车轮，胎压监测，定速巡航，双气囊，前排侧气囊，可视倒车雷达，LED灯，中控门锁，遥控钥匙，无钥匙启动，皮质座椅，马鞍棕色+ 奶盐米色 + 铠甲灰内饰，12.8寸液晶屏+倒车影像+蓝牙，电池包加热， 6个扬声器， 直流快充，前麦弗逊式独立悬架后扭力梁式悬挂）\nLV1 (5 Seats, A/C-G, Power Windows, EPS, ABS+ESC, Steel Wheel, TPMS, Cruise Control,  Dual Airbag, Front Side Airbag, Visible Reversing Radar, LED Light, Power Door Lock, Remote Key, PVC Seats, Brown+Beige+Grey Interior, 12.8 inch Screen+Parking Camera+Bluetooth, Battery Pack with Heating, 6 Speakers, DC fast charging, Front McPherson Strut Suspension  Rear Torsion Beam Suspension)",68979.5918367347,68612.2448979592,67081.6326530612,10026.1034646417,9972.71001423825,9750.23730422401,{"$f":"_xlfn.DISPIMG(\"ID_78830F61715B4ED9B52B26D3BBA59310\",1)","v":"=DISPIMG(\"ID_78830F61715B4ED9B52B26D3BBA59310\",1)"}]
["缤果s","五菱缤果S 旗舰款 325km","325km旗舰版（拼色顶+1000",{"$f":"_xlfn.DISPIMG(\"ID_F0BF9EB7E6834429911A9D6B76CB9547\",1)","v":"=DISPIMG(\"ID_F0BF9EB7E6834429911A9D6B76CB9547\",1)"},72800,null,null,"260W",null,"LV2（5座，空调G，电动门窗，EPS，ABS+ESC，铝合金车轮，胎压监测，定速巡航，双气囊，前排侧气囊，可视倒车雷达，LED灯，中控门锁，遥控钥匙，无钥匙启动，皮质座椅，的卢米 + 铠甲灰 + 火焰橙内饰，12.8寸液晶屏+全景影像+蓝牙，电池包加热， 6个扬声器， 直流快充，前麦弗逊式独立悬架后扭力梁式悬挂）\nLV2 (5 Seats, A/C-G, Power Windows, EPS, ABS+ESC, Alloy Wheel, TPMS, Cruise Control,  Dual Airbag, Front Side Airbag, Visible Reversing Radar, LED Light, Power Door Lock, Remote Key, PVC Seats, Beige+Grey+Orange Interior, 12.8 inch Screen+540 Camera View+Bluetooth, Battery Pack with Heating, 6 Speakers, DC fast charging, Front McPherson Strut Suspension  Rear Torsion Beam Suspension)",74387.7551020408,74020.4081632653,72489.7959183674,10812.173706692,10758.7802562886,10536.3075462743,"=DISPIMG(\"ID_78830F61715B4ED9B52B26D3BBA59310\",1)"]
["缤果s","五菱缤果S 尊享款 430km","430尊享版（拼色顶+1000",{"$f":"_xlfn.DISPIMG(\"ID_FC36F7A7849241749731D104DD214217\",1)","v":"=DISPIMG(\"ID_FC36F7A7849241749731D104DD214217\",1)"},73800,null,"LZW7007BEVCB","260Z","续航：430公里\nCLTC mileage:\n430 KM","LV1（5座，空调G，电动门窗，EPS，ABS+ESC，铁车轮，胎压监测，定速巡航，双气囊，前排侧气囊，可视倒车雷达，LED灯，中控门锁，遥控钥匙，无钥匙启动，皮质座椅，马鞍棕色+ 奶盐米色 + 铠甲灰内饰，12.8寸液晶屏+倒车影像+蓝牙，电池包加热， 6个扬声器， 直流快充，前麦弗逊式独立悬架后扭力梁式悬挂）\nLV1 (5 Seats, A/C-G, Power Windows, EPS, ABS+ESC, Steel Wheel, TPMS, Cruise Control,  Dual Airbag, Front Side Airbag, Visible Reversing Radar, LED Light, Power Door Lock, Remote Key, PVC Seats, Brown+Beige+Grey Interior, 12.8 inch Screen+Parking Camera+Bluetooth, Battery Pack with Heating, 6 Speakers, DC fast charging, Front McPherson Strut Suspension  Rear Torsion Beam Suspension)",74387.7551020408,74020.4081632653,72489.7959183674,10812.173706692,10758.7802562886,10536.3075462743,"=DISPIMG(\"ID_78830F61715B4ED9B52B26D3BBA59310\",1)"]
["缤果s","五菱缤果S 旗舰款 430km","430km旗舰版（自配拼色车顶）",{"$f":"_xlfn.DISPIMG(\"ID_8B4761721FE447B3999CE4DFC301E7CF\",1)","v":"=DISPIMG(\"ID_8B4761721FE447B3999CE4DFC301E7CF\",1)"},80800,null,"LZW7007BEVC9","260T",null,"LV2（5座，空调G，电动门窗，EPS，ABS+ESC，铝合金车轮，胎压监测，定速巡航，双气囊，前排侧气囊，可视倒车雷达，LED灯，中控门锁，遥控钥匙，无钥匙启动，皮质座椅，马鞍棕色+ 奶盐米色 + 铠甲灰内饰，12.8寸液晶屏+全景影像+蓝牙，电池包加热， 6个扬声器， 直流快充，前麦弗逊式独立悬架后扭力梁式悬挂）\nLV2 (5 Seats, A/C-G, Power Windows, EPS, ABS+ESC, Alloy Wheel, TPMS, Cruise Control,  Dual Airbag, Front Side Airbag, Visible Reversing Radar, LED Light, Power Door Lock, Remote Key, PVC Seats, Brown+Beige+Grey Interior, 12.8 inch Screen+540 Camera View+Bluetooth, Battery Pack with Heating, 6 Speakers, DC fast charging, Front McPherson Strut Suspension  Rear Torsion Beam Suspension)",76836.7346938776,76469.387755102,74938.7755102041,11168.1300427148,11114.7365923113,10892.2638822971,"=DISPIMG(\"ID_78830F61715B4ED9B52B26D3BBA59310\",1)",{"$f":"_xlfn.DISPIMG(\"ID_725B2FB10BE34AE3A6811FA91A6573FF\",1)","v":"=DISPIMG(\"ID_725B2FB10BE34AE3A6811FA91A6573FF\",1)"}]
["缤果s","五菱缤果S 旗舰款 430km","系统无英文版","引用中文版配置",80800,"缤果S 英文版\nE261 MCE English Version","LZW7007BEVC9","261F","续航：430公里\nCLTC mileage:\n430 KM","LV2（5座，空调G，电动门窗，EPS，ABS+ESC，铝合金车轮，胎压监测，定速巡航，双气囊，前排侧气囊，可视倒车雷达，LED灯，中控门锁，遥控钥匙，无钥匙启动，皮质座椅，马鞍棕色+ 奶盐米色 + 铠甲灰内饰，12.8寸液晶屏+全景影像+蓝牙，电池包加热， 6个扬声器， 直流快充，前麦弗逊式独立悬架后扭力梁式悬挂）\nLV2 (5 Seats, A/C-G, Power Windows, EPS, ABS+ESC, Alloy Wheel, TPMS, Cruise Control,  Dual Airbag, Front Side Airbag, Visible Reversing Radar, LED Light, Power Door Lock, Remote Key, PVC Seats, Brown+Beige+Grey Interior, 12.8 inch Screen+540 Camera View+Bluetooth, Battery Pack with Heating, 6 Speakers, DC fast charging, Front McPherson Strut Suspension  Rear Torsion Beam Suspension)",76836.7346938776,76469.387755102,74938.7755102041,11168.1300427148,11114.7365923113,10892.2638822971,"=DISPIMG(\"ID_78830F61715B4ED9B52B26D3BBA59310\",1)"]

{"sheet":"星光","index":7,"n_rows":6,"n_cols":18,"rows_kept":6,"cut":false,"hidden":false,"merged":[[1,0,2,0],[3,0,5,0],[1,5,2,5],[3,5,5,5],[1,6,2,6],[4,6,5,6],[1,8,2,8],[4,8,5,8],[1,17,2,17],[3,17,5,17]]}
["国内名称","推广命名","版本","图片Pic","官方指导价","系列\nSeries","型号\nModel","车型代码\nModelCode","发动机代码\nEngine Code ","主要配置描述\nMajor Configurations Description","\nFOB价格\nFOB Price (RMB)","\nFCA价格\nFCA Price (RMB)","\nEXW价格\nEXW Price (RMB)","\nFOB价格\nFOB Price (USD)","\nFCA价格\nFCA Price (USD)","\nEXW价格\nEXW Price (USD)","图片Pic"]
["五菱星光2025款混动版      【中文英文可选】","2025款 五菱星光 150km 智能进阶型","150km智能进阶型",{"$f":"_xlfn.DISPIMG(\"ID_6179C6B48A30494FBC9E861EEC70B8DF\",1)","v":"=DISPIMG(\"ID_6179C6B48A30494FBC9E861EEC70B8DF\",1)"},92800,"星光PHEV 中文版\nF511C PHEV Chinese /English version","LZW7154KBUPHEVA6","T13W","续航：150公里\nCLTC mileage:\n150 KM","LV1（5座，自动恒温空调，前后电动门窗，EPS，ABS+EBD+ESC，前盘后盘，精车轮，胎压监测，定速巡航，双气囊，前排侧气囊，可视倒车雷达，LED灯，中控门锁，遥控钥匙，一键式启动，皮质座椅，深灰色铠甲灰内饰，15.6寸液晶屏+360倒车影像+USB+蓝牙，直流快充，电池包加热，6个扬声器， 前麦弗逊式后独立悬挂）\nLV1 (5 Seats,  Auto A/C, Front and Rear Power Windows, EPS, ABS+EBD+ESC, Front and Rear Disk , Polished Wheel TPMS, Cruise Control,  Dual Airbag, Front Side Airbag, Visible Reversing Radar, LED Light, Power Door Lock, Remote Key, One Button Ignition, PVC Seats, Grey Interior, 15.6 inch Screen+360 Degree Parking Camera+USB+Bluetooth, Battery Pack with Heating, 6 Speakers, Front McPherson Strut Rear Independent Suspension)",100306.12244898,99938.7755102041,99346.9387755102,14579.3782629331,14525.9848125297,14439.9620313242,{"$f":"_xlfn.DISPIMG(\"ID_58AC9887C2FC4EC4B34526D695EA362D\",1)","v":"=DISPIMG(\"ID_58AC9887C2FC4EC4B34526D695EA362D\",1)"},{"$f":"_xlfn.DISPIMG(\"ID_706EA28145F24BF6BACB3F696DB7CB29\",1)","v":"=DISPIMG(\"ID_706EA28145F24BF6BACB3F696DB7CB29\",1)"}]
[null,"2025款 五菱星光 150km 智能领航型","150km智能领航型",{"$f":"_xlfn.DISPIMG(\"ID_1F8C704D7BD14D5297DC16A7DF402978\",1)","v":"=DISPIMG(\"ID_1F8C704D7BD14D5297DC16A7DF402978\",1)"},99800,null,null,"T147",null,"LV2（5座，自动恒温空调，前后电动门窗，EPS，ABS+EBD+ESC，前盘后盘，精车轮，胎压监测，自适应巡航，双气囊，前排侧气囊&侧气帘，前排座椅通风加热&后排加热，可视倒车雷达，LED灯，中控门锁，遥控钥匙，一键式启动，皮质座椅，碳黑+落霞橙内饰，15.6寸液晶屏+360倒车影像+USB+蓝牙，直流快充，电池包加热，6个扬声器， 前麦弗逊式后独立悬挂）\nLV1 (5 Seats,  Auto A/C, Front and Rear Power Windows, EPS, ABS+EBD+ESC, Front and Rear Disk , Polished Wheel TPMS, Self-adaptive Cruise Control,  Dual Airbag, Front Side Airbag & Side Air Curtain, Ventilated and heated front Seats & heated rear Seats, Visible Reversing Radar, LED Light, Power Door Lock, Remote Key, One Button Ignition, PVC Seats, Black & Orange Interior, 15.6 inch Screen+360 Degree Parking Camera+USB+Bluetooth, Battery Pack with Heating, 6 Speakers, Front McPherson Strut Rear Independent Suspension)",104183.673469388,103816.326530612,103224.489795918,15142.9757949692,15089.5823445657,15003.5595633602,{"$f":"_xlfn.DISPIMG(\"ID_58AC9887C2FC4EC4B34526D695EA362D\",1)","v":"=DISPIMG(\"ID_58AC9887C2FC4EC4B34526D695EA362D\",1)"}]
["五菱星光2025款纯电版    ","2025款 五菱星光 510km 智能进阶型","510km智能进阶型",{"$f":"_xlfn.DISPIMG(\"ID_9653F4CE21DE49A18CE4FC2D753D3FDD\",1)","v":"=DISPIMG(\"ID_9653F4CE21DE49A18CE4FC2D753D3FDD\",1)"},109800,"星光EV 中文版\nF511C EV Chinese version","LZW7009BEVA4","T140","续航：510公里\nCLTC mileage:\n510 KM","LV1（5座，自动恒温空调，前后电动门窗，EPS，ABS+EBD+ESC，前盘后盘，精车轮，胎压监测，定速巡航，双气囊，前排侧气囊，可视倒车雷达，LED灯，中控门锁，遥控钥匙，一键式启动，皮质座椅，深灰色铠甲灰内饰，15.6寸液晶屏+360倒车影像+USB+蓝牙，直流快充，电池包加热，6个扬声器， 前麦弗逊式后独立悬挂）\nLV1 (5 Seats,  Auto A/C, Front and Rear Power Windows, EPS, ABS+EBD+ESC, Front and Rear Disk , Polished Wheel TPMS, Cruise Control,  Dual Airbag, Front Side Airbag, Visible Reversing Radar, LED Light, Power Door Lock, Remote Key, One Button Ignition, PVC Seats, Grey Interior, 15.6 inch Screen+360 Degree Parking Camera+USB+Bluetooth, Battery Pack with Heating, 6 Speakers, Front McPherson Strut Rear Independent Suspension)",100102.040816327,99734.693877551,99142.8571428571,14549.7152349312,14496.3217845278,14410.2990033223,{"$f":"_xlfn.DISPIMG(\"ID_31F016FE624B4BCEA67DFF651099E56B\",1)","v":"=DISPIMG(\"ID_31F016FE624B4BCEA67DFF651099E56B\",1)"},{"$f":"_xlfn.DISPIMG(\"ID_FC3C92453B8945AAB0156786B50125EE\",1)","v":"=DISPIMG(\"ID_FC3C92453B8945AAB0156786B50125EE\",1)"}]
[null,"2025款 五菱星光 610km 智能进阶型","610km智能进阶型   【中文英文可选】",{"$f":"_xlfn.DISPIMG(\"ID_C112AE8792EC40429D0278A92C30561D\",1)","v":"=DISPIMG(\"ID_C112AE8792EC40429D0278A92C30561D\",1)"},115800,null,"LZW7009BEVA5","T142","续航：610公里\nCLTC mileage:\n610 KM","LV1（5座，自动恒温空调，前后电动门窗，EPS，ABS+EBD+ESC，前盘后盘，精车轮，胎压监测，定速巡航，双气囊，前排侧气囊，可视倒车雷达，LED灯，中控门锁，遥控钥匙，一键式启动，皮质座椅，深灰色铠甲灰内饰，15.6寸液晶屏+360倒车影像+USB+蓝牙，直流快充，电池包加热，6个扬声器， 前麦弗逊式后独立悬挂）\nLV1 (5 Seats,  Auto A/C, Front and Rear Power Windows, EPS, ABS+EBD+ESC, Front and Rear Disk , Polished Wheel TPMS, Cruise Control,  Dual Airbag, Front Side Airbag, Visible Reversing Radar, LED Light, Power Door Lock, Remote Key, One Button Ignition, PVC Seats, Grey Interior, 15.6 inch Screen+360 Degree Parking Camera+USB+Bluetooth, Battery Pack with Heating, 6 Speakers, Front McPherson Strut Rear Independent Suspension)",106530.612244898,106163.265306122,105571.428571429,15484.100616991,15430.7071665876,15344.6843853821,{"$f":"_xlfn.DISPIMG(\"ID_31F016FE624B4BCEA67DFF651099E56B\",1)","v":"=DISPIMG(\"ID_31F016FE624B4BCEA67DFF651099E56B\",1)"}]
[null,"025款 五菱星光 610km 智能旗舰型","610km智能旗舰型",{"$f":"_xlfn.DISPIMG(\"ID_18841F77BDA94B96984861A4BFC75B05\",1)","v":"=DISPIMG(\"ID_18841F77BDA94B96984861A4BFC75B05\",1)"},125800,null,null,"T148",null,"LV2（5座，自动恒温空调，前后电动门窗，EPS，ABS+EBD+ESC，前盘后盘，精车轮，胎压监测，自适应巡航，双气囊，前排侧气囊&侧气帘，前排座椅通风加热&后排加热，可视倒车雷达，LED灯，中控门锁，遥控钥匙，一键式启动，皮质座椅，深灰色铠甲灰内饰，15.6寸液晶屏+360倒车影像+USB+蓝牙，直流快充，电池包加热，6个扬声器， 前麦弗逊式后独立悬挂）\nLV1 (5 Seats,  Auto A/C, Front and Rear Power Windows, EPS, ABS+EBD+ESC, Front and Rear Disk , Polished Wheel TPMS, Self-adaptive Cruise Control,  Dual Airbag, Front Side Airbag & Side Air Curtain, Ventilated and heated front Seats & heated rear Seats, Visible Reversing Radar, LED Light, Power Door Lock, Remote Key, One Button Ignition, PVC Seats, Grey Interior, 15.6 inch Screen+360 Degree Parking Camera+USB+Bluetooth, Battery Pack with Heating, 6 Speakers, Front McPherson Strut Rear Independent Suspension)",117755.102040816,117387.755102041,116795.918367347,17115.5671570954,17062.173706692,16976.1509254865,{"$f":"_xlfn.DISPIMG(\"ID_4574092C28A1493899A9D07F3AD8EB0C\",1)","v":"=DISPIMG(\"ID_4574092C28A1493899A9D07F3AD8EB0C\",1)"}]

{"sheet":"星光s","index":8,"n_rows":7,"n_cols":17,"rows_kept":7,"cut":false,"hidden":false,"merged":[[1,5,2,5],[3,5,6,5],[1,6,2,6],[3,6,5,6],[1,8,2,8],[3,8,5,8]]}
["国内名称","推广命名","版本","图片Pic","官方指导价","系列\nSeries","型号\nModel","车型代码\nModelCode","发动机代码\nEngine Code ","主要配置描述\nMajor Configurations Description","\nFOB价格\nFOB Price (RMB)","\nFCA价格\nFCA Price (RMB)","\nEXW价格\nEXW Price (RMB)","\nFOB价格\nFOB Price (USD)","\nFCA价格\nFCA Price (USD)","\nEXW价格\nEXW Price (USD)","图片Pic"]
["五菱星光s 2025款纯电版","五菱星光S 2025款 510领航纯电型","510领航纯电型",null,119800,"星光S SUV EV  出口版\nF510S SUV EV English version","LZW6470EVA1","AS49","续航：510公里\nCLTC mileage:\n510 KM","LV1（5座，自动恒温空调，4门电动窗，EPS，ABS+EBD+ESC+VDC+TCS+HBA+HHC+ESS，前盘后盘，铝合金精车轮，胎压监测，双气囊，前排侧气囊，倒车雷达，360全景影像，直流快充，无钥匙进入，一键启动，定速巡航，LED灯，全景天窗，电子驻车制动，电动尾门，皮革座椅，黑色内饰，可触摸15.6英寸显示屏+电调收音机+可视倒车+蓝牙+USB，9个扬声器，前麦弗逊式后独立悬架） \nLV1 (5 Seats, Auto A/C, Four Doors Power Windows, EPS, ABS+EBD+ESC+VDC+TCS+HBA+HHC+ESS, Front and Rear Disk, Alloy Wheel, TPMS, Dual Airbag, Front Side Airbag,  Reverse Sensor, 360 Degrees View, DC Fast Charge, Remote Keyless Entry, One Button Ignition, Cruise Control, LED Lighting, Panoramic roof, Electrical Parking Brake, Power tail Gate. Simulated Leather Seats, Black Interior, 15.6 inch screen+radio +USB+Bluetooth, 9 speakers, Front McPherson Strut Rear independent suspension)",112142.857142857,111775.510204082,110928.571428571,16299.8338870432,16246.4404366398,16123.3388704319,{"$f":"_xlfn.DISPIMG(\"ID_B8C90088C32D4246873F342A7795BDC5\",1)","v":"=DISPIMG(\"ID_B8C90088C32D4246873F342A7795BDC5\",1)"}]
["五菱星光s 2025款纯电版","五菱星光S 2025款 510领航旗舰型","510领航旗舰型",null,129800,null,null,"AS4B",null,"LV1（5座，自动恒温空调，4门电动窗，EPS，ABS+EBD+ESC+VDC+TCS+HBA+HHC+ESS，前盘后盘，铝合金精车轮，胎压监测，双气囊，前排侧气囊，倒车雷达，360全景影像，直流快充，无钥匙进入，一键启动，定速巡航，LED灯，全景天窗，电子驻车制动，电动尾门，皮革座椅，前排座椅通风加热&后排加热，黑色内饰，可触摸15.6英寸显示屏+电调收音机+可视倒车+蓝牙+USB，9个扬声器，前麦弗逊式后独立悬架） \nLV1 (5 Seats, Auto A/C, Four Doors Power Windows, EPS, ABS+EBD+ESC+VDC+TCS+HBA+HHC+ESS, Front and Rear Disk, Alloy Wheel, TPMS, Dual Airbag, Front Side Airbag,  Reverse Sensor, 360 Degrees View, DC Fast Charge, Remote Keyless Entry, One Button Ignition, Cruise Control, LED Lighting, Panoramic roof, Electrical Parking Brake, Power tail Gate. Simulated Leather Seats, Ventilated and heated front Seats & heated rear Seats, Black Interior, 15.6 inch screen+radio +USB+Bluetooth, 9 speakers, Front McPherson Strut Rear independent suspension)",113061.224489796,112693.87755102,111846.93877551,16433.3175130517,16379.9240626483,16256.8224964404,"=DISPIMG(\"ID_B8C90088C32D4246873F342A7795BDC5\",1)"]
["五菱星光S 2025款-插电混动版","五菱星光S 2025款 130km 领航型","130km领航型【出口版可】",null,109800,"星光S SUV PHEV  中文版\nF511S SUV PHEV Chinese version","LZW6470KBUPHEVA8","ASBM","续航：130公里\nCLTC mileage:\n130 KM","LV0（5座，自动恒温空调，4门电动窗，EPS，ABS+EBD+ESC+VDC+TCS+HBA+HHC+ESS，前盘后盘，铝合精车轮，胎压监测，双气囊，前排侧气囊&侧气帘，倒车雷达，360全景影像，直流快充，无钥匙进入，一键启动，定速巡航，LED灯，电子驻车制动，电动尾门，皮革座椅，黑色内饰，可触摸15.6英寸显示屏+电调收音机+可视倒车+蓝牙+USB，6个扬声器，前麦弗逊式后独立悬架） \nLV1 (5 Seats, Auto A/C, Four Doors Power Windows, EPS, ABS+EBD+ESC+VDC+TCS+HBA+HHC+ESS, Front and Rear Disk, Alloy Wheel, TPMS, Dual Airbag, Front Side Airbag & Curtain,  Reverse Sensor, 360 Degrees View, DC Fast Charge, Remote Keyless Entry, One Button Ignition, Cruise Control, LED Lighting, Electrical Parking Brake, Power tail Gate. Simulated Leather Seats, Black Interior, 15.6 inch screen+radio +USB+Bluetooth, 6 speakers, Front McPherson Strut Rear independent suspension)",104693.87755102,104326.530612245,103479.591836735,15217.1333649739,15163.7399145705,15040.6383483626,"=DISPIMG(\"ID_B8C90088C32D4246873F342A7795BDC5\",1)"]
["五菱星光S 2025款-插电混动版","五菱星光S 2025款 130km 旗舰型","130km旗舰型【出口版可】",null,119800,null,null,"ASC2",null,"LV1（5座，自动恒温空调，4门电动窗，EPS，ABS+EBD+ESC+VDC+TCS+HBA+HHC+ESS，前盘后盘，铝合精车轮，胎压监测，双气囊，前排侧气囊&侧气帘，前排座椅通风加热，倒车雷达，360全景影像，直流快充，无钥匙进入，一键启动，定速巡航，LED灯，全景天窗，电子驻车制动，电动尾门，皮革座椅，黑色内饰，可触摸15.6英寸显示屏+电调收音机+可视倒车+蓝牙+USB，9个扬声器，前麦弗逊式后独立悬架） \nLV1 (5 Seats, Auto A/C, Four Doors Power Windows, EPS, ABS+EBD+ESC+VDC+TCS+HBA+HHC+ESS, Front and Rear Disk, Alloy Wheel, TPMS, Dual Airbag, Front Side Airbag & Curtain,  Front Row Seats Ventilation and Heating, Reverse Sensor, 360 Degrees View, DC Fast Charge, Remote Keyless Entry, One Button Ignition, Cruise Control, LED Lighting, Panoramic roof, Electrical Parking Brake, Power tail Gate. Simulated Leather Seats, Black Interior, 15.6 inch screen+radio +USB+Bluetooth, 9 speakers, Front McPherson Strut Rear independent suspension)",111020.408163265,110653.06122449,109806.12244898,16136.6872330327,16083.2937826293,15960.1922164215,"=DISPIMG(\"ID_B8C90088C32D4246873F342A7795BDC5\",1)"]
["五菱星光S 2025款-插电混动版","五菱星光S 2025款 130km 旗舰型（选装灵眸辅助驾驶 ）","130km 旗舰型（选装灵眸辅助驾驶 ",null,129800,null,null,"ASCH",null,"LV2（5座，自动恒温空调，4门电动窗，EPS，ABS+EBD+ESC+VDC+TCS+HBA+HHC+ESS，前盘后盘，铝合精车轮，胎压监测，双气囊，前排侧气囊&侧气帘，前排座椅通风加热，外后视镜带盲区提醒灯，倒车雷达，360全景影像，直流快充，无钥匙进入，一键启动，定速巡航，LED灯，全景天窗，电子驻车制动，电动尾门，皮革座椅，黑色内饰，可触摸15.6英寸显示屏+电调收音机+可视倒车+蓝牙+USB，9个扬声器，前麦弗逊式后独立悬架） \nLV1 (5 Seats, Auto A/C, Four Doors Power Windows, EPS, ABS+EBD+ESC+VDC+TCS+HBA+HHC+ESS, Front and Rear Disk, Alloy Wheel, TPMS, Dual Airbag, Front Side Airbag & Curtain,  Front Row Seats Ventilation and Heating, Exterior Rear Mirror has Blind Spot Warning Light, Reverse Sensor, 360 Degrees View, DC Fast Charge, Remote Keyless Entry, One Button Ignition, Cruise Control, LED Lighting, Panoramic roof, Electrical Parking Brake, Power tail Gate. Simulated Leather Seats, Black Interior, 15.6 inch screen+radio +USB+Bluetooth, 9 speakers, Front McPherson Strut Rear independent suspension)",111632.653061224,111265.306122449,110418.367346939,16225.6763170384,16172.282866635,16049.1813004271,"=DISPIMG(\"ID_B8C90088C32D4246873F342A7795BDC5\",1)"]
["五菱星光S 2025款-插电混动版","五菱星光S 2025款 130km 高功率旗舰型","130km高功率旗舰型",{"$f":"_xlfn.DISPIMG(\"ID_94D77A834D744995B2E1443C9A675C78\",1)","v":"=DISPIMG(\"ID_94D77A834D744995B2E1443C9A675C78\",1)"},129800,null,"LZW6470HDUPHEVA9","ASBE","续航：130公里 高功率版本（S15T）\nCLTC mileage:\n130 KM High power version (S15T)","LV2（5座，自动恒温空调，4门电动窗，EPS，ABS+EBD+ESC+VDC+TCS+HBA+HHC+ESS，前盘后盘，铝合精车轮，胎压监测，双气囊，前排侧气囊&侧气帘，前排座椅通风加热，外后视镜带盲区提醒灯，倒车雷达，360全景影像，直流快充，无钥匙进入，一键启动，定速巡航，LED灯，全景天窗，电子驻车制动，电动尾门，皮革座椅，黑色内饰，可触摸15.6英寸显示屏+电调收音机+可视倒车+蓝牙+USB，9个扬声器，前麦弗逊式后独立悬架） \nLV1 (5 Seats, Auto A/C, Four Doors Power Windows, EPS, ABS+EBD+ESC+VDC+TCS+HBA+HHC+ESS, Front and Rear Disk, Alloy Wheel, TPMS, Dual Airbag, Front Side Airbag & Curtain,  Front Row Seats Ventilation and Heating, Exterior Rear Mirror has Blind Spot Warning Light, Reverse Sensor, 360 Degrees View, DC Fast Charge, Remote Keyless Entry, One Button Ignition, Cruise Control, LED Lighting, Panoramic roof, Electrical Parking Brake, Power tail Gate. Simulated Leather Seats, Black Interior, 15.6 inch screen+radio +USB+Bluetooth, 9 speakers, Front McPherson Strut Rear independent suspension)",115918.367346939,115551.020408163,114704.081632653,16848.5999050783,16795.2064546749,16672.104888467,"=DISPIMG(\"ID_B8C90088C32D4246873F342A7795BDC5\",1)"]

{"sheet":"悦也plus","index":9,"n_rows":4,"n_cols":17,"rows_kept":4,"cut":false,"hidden":false,"merged":[[2,5,3,5]]}
["国内名称","推广命名","版本","图片Pic","官方指导价","系列\nSeries","型号\nModel","车型代码\nModelCode","发动机代码\nEngine Code ","主要配置描述\nMajor Configurations Description","\nFOB价格\nFOB Price (RMB)","\nFCA价格\nFCA Price (RMB)","\nEXW价格\nEXW Price (RMB)","\nFOB价格\nFOB Price (USD)","\nFCA价格\nFCA Price (USD)","\nEXW价格\nEXW Price (USD)","图片Pic"]
["宝骏悦也纯电版","2026款 宝骏悦也Plus 501km 智尊版","501智尊版",{"$f":"_xlfn.DISPIMG(\"ID_60FC921261BA40BCA28C148D96584705\",1)","v":"=DISPIMG(\"ID_60FC921261BA40BCA28C148D96584705\",1)"},105800,"悦也 Yep Plus\n 中文版\nE261S Plus\nChinese Version","LZW6402BEVA2","2S1G","续航：501公里\nCLTC mileage:\n501 KM","LV2（5座，自动空调，电动门窗，EPS, ESC，ACC+AEB，前盘后盘，精车轮，胎压监测，双气囊，前排侧气囊，LED灯，中控门锁，无钥匙进入，皮质座椅，灵犀智驾功能，碳黑+森绿内饰，12.8寸液晶屏+360倒车影像+蓝牙，直流快充，电池包加热，6个扬声器，前麦弗逊式独立悬架后螺旋弹簧三连杆式半独立悬架）\nLV2 (5 Seats, Auto A/C, Power Windows, EPS, ESC, ACC+AEB, Front and Rear Disk , Alloy Wheel, TPMS, Dual Airbag, Front Side Airbags, LED Light, Power Door Lock, Keyless entry, PVC Seats, Intelligent Driving, Black + Green Interior, 12.8 inch Screen+360 Reversing Image+Bluetooth, DC Fast Charge, Battery Pack with Heating, 6 Speakers, Front McPherson Strut Rear Suspension Rear 3-link Coil spring half isolate rear suspension)",93775.5102040816,93408.1632653061,92030.612244898,13630.1613668723,13576.7679164689,13376.5424774561,{"$f":"_xlfn.DISPIMG(\"ID_E925DA44EEEC4DDFBD6B4B334B7541F6\",1)","v":"=DISPIMG(\"ID_E925DA44EEEC4DDFBD6B4B334B7541F6\",1)"}]
["宝骏悦也纯电版","2026款 宝骏悦也Plus 401km 旗舰版","401旗舰版",{"$f":"_xlfn.DISPIMG(\"ID_4E7F6CBD82DF4D6A87ED38853C7F01BB\",1)","v":"=DISPIMG(\"ID_4E7F6CBD82DF4D6A87ED38853C7F01BB\",1)"},87800,"悦也 Yep Plus\n 出口版\nE261S Plus\nEnglish Version","LZW6402EVA1","2S1J","续航：401公里\nCLTC mileage:\n401 KM","LV2（5座，自动空调，电动门窗，EPS, ESC，ACC+AEB，前盘后盘，精车轮，胎压监测，双气囊，前排侧气囊，LED灯，中控门锁，无钥匙进入，皮质座椅，碳黑+森绿内饰，12.8寸液晶屏+360倒车影像+蓝牙，直流快充，电池包加热，6个扬声器，前麦弗逊式独立悬架后螺旋弹簧三连杆式半独立悬架）\nLV2 (5 Seats, Auto A/C, Power Windows, EPS, ESC, ACC+AEB, Front and Rear Disk , Alloy Wheel, TPMS, Dual Airbag, Front Side Airbags, LED Light, Power Door Lock, Keyless entry, PVC Seats, Black + Green Interior, 12.8 inch Screen+360 Reversing Image+Bluetooth, DC Fast Charge, Battery Pack with Heating, 6 Speakers, Front McPherson Strut Rear Suspension Rear 3-link Coil spring half isolate rear suspension)",79795.9183673469,79428.5714285714,78448.9795918367,11598.2439487423,11544.8504983389,11402.4679639298,{"$f":"_xlfn.DISPIMG(\"ID_E925DA44EEEC4DDFBD6B4B334B7541F6\",1)","v":"=DISPIMG(\"ID_E925DA44EEEC4DDFBD6B4B334B7541F6\",1)"}]
["宝骏悦也纯电版","2026款 宝骏悦也Plus 501km 旗舰版","501旗舰版",{"$f":"_xlfn.DISPIMG(\"ID_6919FCEAC260456DA2BB674EC2E41A11\",1)","v":"=DISPIMG(\"ID_6919FCEAC260456DA2BB674EC2E41A11\",1)"},95800,null,"LZW6402BEVA2","2S1L","续航：501公里\nCLTC mileage:\n501 KM","LV2（5座，自动空调，电动门窗，EPS, ESC，ACC+AEB，前盘后盘，精车轮，胎压监测，双气囊，前排侧气囊，LED灯，中控门锁，无钥匙进入，皮质座椅，碳黑+森绿内饰，12.8寸液晶屏+360倒车影像+蓝牙，直流快充，电池包加热，6个扬声器，前麦弗逊式独立悬架后螺旋弹簧三连杆式半独立悬架）\nLV2 (5 Seats, Auto A/C, Power Windows, EPS, ESC, ACC+AEB, Front and Rear Disk , Alloy Wheel, TPMS, Dual Airbag, Front Side Airbags, LED Light, Power Door Lock, Keyless entry, PVC Seats, Black + Green Interior, 12.8 inch Screen+360 Reversing Image+Bluetooth, DC Fast Charge, Battery Pack with Heating, 6 Speakers, Front McPherson Strut Rear Suspension Rear 3-link Coil spring half isolate rear suspension)",86938.7755102041,86571.4285714286,85591.8367346939,12636.4499288087,12583.0564784053,12440.6739439962,{"$f":"_xlfn.DISPIMG(\"ID_E925DA44EEEC4DDFBD6B4B334B7541F6\",1)","v":"=DISPIMG(\"ID_E925DA44EEEC4DDFBD6B4B334B7541F6\",1)"}]

{"sheet":"云海","index":10,"n_rows":4,"n_cols":17,"rows_kept":4,"cut":false,"hidden":false,"merged":[]}
["国内名称","推广命名","版本","图片Pic","官方指导价","系列\nSeries","型号\nModel","车型代码\nModelCode","发动机代码\nEngine Code ","主要配置描述\nMajor Configurations Description","\nFOB价格\nFOB Price (RMB)","\nFCA价格\nFCA Price (RMB)","\nEXW价格\nEXW Price (RMB)","\nFOB价格\nFOB Price (USD)","\nFCA价格\nFCA Price (USD)","\nEXW价格\nEXW Price (USD)","图片Pic"]
["宝骏云海26款混动","2026款 宝骏云海 140km 插混标准版","140km插混标准版【英文版可选】",{"$f":"_xlfn.DISPIMG(\"ID_E9D40A6320B04447BB3A3B16736C7B3C\",1)","v":"=DISPIMG(\"ID_E9D40A6320B04447BB3A3B16736C7B3C\",1)"},109800,"26款 云海 SUV PHEV 中文版\nF411S SUV PHEV","LZW6461KBUPHEVB1","B751","续航：140公里\nCLTC mileage:\n140 KM","LV1（5座，自动恒温空调，4门电动窗，EPS，ABS+EBD+ESC+VDC+TCS+HBA+HHC+ESS，前盘后盘，铝合金精车轮，胎压监测，双气囊，左右侧气帘，倒车雷达，360全景影像，直流快充，无钥匙进入，一键启动，LED灯，电子驻车制动，皮革座椅，前排座椅通风加热，铠甲灰内饰，可触摸15.6英寸显示屏+电调收音机+可视倒车+蓝牙+USB+手机互联功能，8个扬声器，前麦弗逊式后独立悬架） \nLV1 (5 Seats, Auto A/C, Four Doors Power Windows, EPS, ABS+EBD+ESC+VDC+TCS+HBA+HHC+ESS, Front and Rear Disk, Alloy Wheel, TPMS, Dual Airbag, Front Side Air Curtain,  Reverse Sensor, 360 Degrees View, DC Fast Charge, Remote Keyless Entry, One Button Ignition, LED Lighting, Electrical Parking Brake, Simulated Leather Seats, Ventilated and heated front Seats, Grey Interior, 15.6 inch screen+radio +USB+Bluetooth+Mobile Interconnection, 8 speakers, Front McPherson Strut Rear independent suspension)",108367.346938776,108000,107408.163265306,15751.0678690081,15697.6744186047,15611.6516373991,{"$f":"_xlfn.DISPIMG(\"ID_EC28CD0D8D5842D18AFAEA3662E32886\",1)","v":"=DISPIMG(\"ID_EC28CD0D8D5842D18AFAEA3662E32886\",1)"}]
["宝骏云海26款纯电","2026款 宝骏云海 500km 纯电标准版","500km纯电标准版【英文版可选】",{"$f":"_xlfn.DISPIMG(\"ID_047E5F99A3E64E8991B5AA42C4703E45\",1)","v":"=DISPIMG(\"ID_047E5F99A3E64E8991B5AA42C4703E45\",1)"},109800,"26款 云海 SUV EV 中文版\nF411S SUV EV","LZW6452EVB","B75K","续航：500公里\nCLTC mileage:\n500 KM","LV1（5座，自动恒温空调，4门电动窗，EPS，ABS+EBD+ESC+VDC+TCS+HBA+HHC+ESS，前盘后盘，铝合金精车轮，胎压监测，双气囊，左右侧气帘，倒车雷达，360全景影像，直流快充，无钥匙进入，一键启动，定速巡航，LED灯，电子驻车制动，皮革座椅，前排座椅通风加热，铠甲灰内饰，可触摸15.6英寸显示屏+电调收音机+可视倒车+蓝牙+USB+手机互联功能，8个扬声器，前麦弗逊式后独立悬架） \nLV1 (5 Seats, Auto A/C, Four Doors Power Windows, EPS, ABS+EBD+ESC+VDC+TCS+HBA+HHC+ESS, Front and Rear Disk, Alloy Wheel, TPMS, Dual Airbag, Front Side Air Curtain,  Reverse Sensor, 360 Degrees View, DC Fast Charge, Remote Keyless Entry, One Button Ignition, Cruise Control, LED Lighting, Electrical Parking Brake, Simulated Leather Seats, Ventilated and heated front Seats, Grey Interior, 15.6 inch screen+radio +USB+Bluetooth+Mobile Interconnection, 8 speakers, Front McPherson Strut Rear independent suspension)",107653.06122449,107285.714285714,106693.87755102,15647.2472710014,15593.853820598,15507.8310393925,{"$f":"_xlfn.DISPIMG(\"ID_EC28CD0D8D5842D18AFAEA3662E32886\",1)","v":"=DISPIMG(\"ID_EC28CD0D8D5842D18AFAEA3662E32886\",1)"}]
["宝骏云海26款纯电","2026款 宝骏云海 600km 纯电标准版","600km纯电标准版【英文版可选】",{"$f":"_xlfn.DISPIMG(\"ID_091373CE8F6F4E71915BF7595E6061FA\",1)","v":"=DISPIMG(\"ID_091373CE8F6F4E71915BF7595E6061FA\",1)"},119800,null,"LZW6452EVA","B75S","续航：600公里\nCLTC mileage:\n600 KM","LV1（5座，自动恒温空调，4门电动窗，EPS，ABS+EBD+ESC+VDC+TCS+HBA+HHC+ESS，前盘后盘，铝合金精车轮，胎压监测，双气囊，左右侧气帘，倒车雷达，360全景影像，直流快充，无钥匙进入，一键启动，定速巡航，LED灯，电子驻车制动，皮革座椅，前排座椅通风加热，铠甲灰内饰，可触摸15.6英寸显示屏+电调收音机+可视倒车+蓝牙+USB+手机互联功能，8个扬声器，前麦弗逊式后独立悬架） \nLV1 (5 Seats, Auto A/C, Four Doors Power Windows, EPS, ABS+EBD+ESC+VDC+TCS+HBA+HHC+ESS, Front and Rear Disk, Alloy Wheel, TPMS, Dual Airbag, Front Side Air Curtain,  Reverse Sensor, 360 Degrees View, DC Fast Charge, Remote Keyless Entry, One Button Ignition, Cruise Control, LED Lighting, Electrical Parking Brake, Simulated Leather Seats, Ventilated and heated front Seats, Grey Interior, 15.6 inch screen+radio +USB+Bluetooth+Mobile Interconnection, 8 speakers, Front McPherson Strut Rear independent suspension)",116938.775510204,116571.428571429,115979.591836735,16996.9150450878,16943.5215946844,16857.4988134789,{"$f":"_xlfn.DISPIMG(\"ID_EC28CD0D8D5842D18AFAEA3662E32886\",1)","v":"=DISPIMG(\"ID_EC28CD0D8D5842D18AFAEA3662E32886\",1)"}]

{"sheet":"宏光s3","index":11,"n_rows":4,"n_cols":17,"rows_kept":4,"cut":false,"hidden":false,"merged":[[1,0,3,0],[1,5,3,5],[1,6,3,6],[1,8,3,8]]}
["国内名称","推广命名","版本","图片Pic","官方指导价","系列\nSeries","型号\nModel","车型代码\nModelCode","发动机代码\nEngine Code ","主要配置描述\nMajor Configurations Description","\nFOB价格\nFOB Price (RMB)","\nFCA价格\nFCA Price (RMB)","\nEXW价格\nEXW Price (RMB)","\nFOB价格\nFOB Price (USD)","\nFCA价格\nFCA Price (USD)","\nEXW价格\nEXW Price (USD)","图片Pic"]
["五菱宏光S3-客车","五菱宏光S3 1.5L 6MT 标准型","1.5L-6MT-标准-7座",{"$f":"_xlfn.DISPIMG(\"ID_B6AC75E4D4FB49AA9B325C88C3F0AC43\",1)","v":"=DISPIMG(\"ID_B6AC75E4D4FB49AA9B325C88C3F0AC43\",1)"},59800,"宏光S3 SUV\nCN120S SUV","LZW6478EAU\n国Ⅵ China Ⅵ\n 国六b RDE","LACR","UY6\n(1.485L) 6MT","LV0（7座，空调G，前中门电动门窗，EPS，ABS+EBD，前盘后鼓，铝合金车轮，无气囊，胎压监测，中控门锁，遥控钥匙，中排2独立座椅，织物座椅，收音机+USB，2个扬声器，螺旋弹簧半独立悬架） \nLV0 (7 Seats, A/C-G, Front and Middle Power Windows, EPS, ABS+EBD, Front Disk and Rear Drum, Alloy Wheel, TPMS, w/o Airbag, Central Door Lock, Remote Key, 2 Captain Seats in the 2nd Row, Textile Seats, Radio+USB, 2 Speakers, Coil Spring Half Isolate Rear Suspension)",49693.8775510204,49326.5306122449,48265.306122449,7222.94731846227,7169.55386805885,7015.30612244898,{"$f":"_xlfn.DISPIMG(\"ID_BF46F63B96E645DB98B29ECC70BF2F0A\",1)","v":"=DISPIMG(\"ID_BF46F63B96E645DB98B29ECC70BF2F0A\",1)"}]
[null,"五菱宏光S3 1.5L 6MT 舒适型","1.5L-6MT-舒适-7座",{"$f":"_xlfn.DISPIMG(\"ID_802FE38DC84B48AABC835CDDECF4A0F2\",1)","v":"=DISPIMG(\"ID_802FE38DC84B48AABC835CDDECF4A0F2\",1)"},68800,null,null,"LACU",null,"LV1（7座，空调H，前中门电动门窗，EPS，ABS+EBD，前盘后鼓，铝合金车轮，胎压监测，驾驶员气囊，倒车雷达，中控门锁，遥控钥匙，中排2独立座椅，人造革座椅，可视倒车+8寸触摸屏+USB+收音机+蓝牙+手机互联，2个扬声器，螺旋弹簧半独立悬架) \nLV1 (7 Seats, A/C-H, Front and Middle Power Windows, EPS, ABS+EBD, Front Disk and Rear Drum, Alloy Wheel, TPMS, Driver Airbag, Rear Parking Sensors, Central Door Lock, Remote Key, 2 Captain Seats in the 2nd Row, Artificial Leather Seats, Reversing Video+8 inch touchable Screen+USB+Radio+Bluetooth+Mobile Interconnection, 2 Speakers, Coil Spring Half Isolate Rear Suspension)",53775.5102040816,53408.1632653061,52346.9387755102,7816.20787850024,7762.81442809682,7608.56668248695,{"$f":"_xlfn.DISPIMG(\"ID_BF46F63B96E645DB98B29ECC70BF2F0A\",1)","v":"=DISPIMG(\"ID_BF46F63B96E645DB98B29ECC70BF2F0A\",1)"}]
[null,"五菱宏光S3 1.5L 6MT 豪华型","1.5L-6MT-豪华型-7座",{"$f":"_xlfn.DISPIMG(\"ID_E3D38263ADA342D6B65DB8E3ED9F0381\",1)","v":"=DISPIMG(\"ID_E3D38263ADA342D6B65DB8E3ED9F0381\",1)"},74800,null,null,"LACV",null,"LV2（7座，空调H，前中门电动门窗，EPS，ABS+EBD，前盘后鼓，铝合金车轮，胎压监测，双气囊，倒车雷达，中控门锁，遥控钥匙，定速巡航，中排2独立座椅，人造革座椅，可视倒车+8英寸触摸屏+USB接口+收音机+蓝牙+手机互联，4个扬声器，螺旋弹簧半独立悬架) \nLV2 (7 Seats, A/C-H, Front and Middle Power Windows, EPS, ABS+EBD,  Front Disk and Rear Drum,  Alloy Wheel, TPMS, Dual Airbag, Rear Parking Sensors, Central Door Lock, Remote Key, Cruise Control, 2 Captain Seats in the 2nd Row, Artificial Leather Seats, Reversing video+8 Inch Touchable Screen+USB+Radio+Bluetooth+Mobile Interconnection, 4 Speakers, Coil Spring Half Isolate Rear Suspension)",56530.612244898,56163.2653061224,55102.0408163265,8216.65875652587,8163.26530612245,8009.01756051258,{"$f":"_xlfn.DISPIMG(\"ID_BF46F63B96E645DB98B29ECC70BF2F0A\",1)","v":"=DISPIMG(\"ID_BF46F63B96E645DB98B29ECC70BF2F0A\",1)"}]

{"sheet":"星驰","index":12,"n_rows":3,"n_cols":18,"rows_kept":3,"cut":false,"hidden":false,"merged":[[1,0,2,0],[1,5,2,5]]}
["国内名称","推广命名","版本","图片Pic","官方指导价","系列\nSeries","型号\nModel","车型代码\nModelCode","发动机代码\nEngine Code ","主要配置描述\nMajor Configurations Description","\nFOB价格\nFOB Price (RMB)","\nFCA价格\nFCA Price (RMB)","\nEXW价格\nEXW Price (RMB)","\nFOB价格\nFOB Price (USD)","\nFCA价格\nFCA Price (USD)","\nEXW价格\nEXW Price (USD)","图片Pic"]
["五菱星驰2026款  燃油版","五菱星驰 1.5L 6MT 自由型","1.5L 6MT自由型",{"$f":"_xlfn.DISPIMG(\"ID_9447176984424F4CA9B9BA0E315A79B3\",1)","v":"=DISPIMG(\"ID_9447176984424F4CA9B9BA0E315A79B3\",1)"},56800,"星驰 SUV\n310S SUV","LZW7157EBU","S334","1.485L MT","LV0 (5座，前置空调G，EPS，ABS+EBD+ESC，前盘后盘，前中门电动门窗，铝合金车轮，驾驶员气囊，无钥匙进入，一键启动，LED灯，皮革座椅，收音机+USB+蓝牙音乐，2个扬声器，扭力梁式半独立悬挂) \nLV0（5 Seats, A/C-G, EPS, ABS+EBD+ESC, Front and Rear Disk, Front and Middle Power Windows, Alloy Wheel, Driver airbag, Remote Keyless Entry, One Button Ignition, LED Lighting, Simulated Leather Seats, Radio+USB+bluetooth music, 2 Speakers, Torsion Beam Coil Spring Semi-independent Rear Suspension）",49387.7551020408,49020.4081632653,48214.2857142857,7178.45277645942,7125.059326056,7007.89036544851,{"$f":"_xlfn.DISPIMG(\"ID_15D12BF627E2435D8A068CCE57814663\",1)","v":"=DISPIMG(\"ID_15D12BF627E2435D8A068CCE57814663\",1)"},{"$f":"_xlfn.DISPIMG(\"ID_48AE47B5BF544767A3C76FFBC8BBA0B5\",1)","v":"=DISPIMG(\"ID_48AE47B5BF544767A3C76FFBC8BBA0B5\",1)"}]
[null,"五菱星驰 1.5L CVT 畅玩型","1.5L CVT畅玩型",{"$f":"_xlfn.DISPIMG(\"ID_C332A5DD63A04BE7B1CBA79A58FF5C7B\",1)","v":"=DISPIMG(\"ID_C332A5DD63A04BE7B1CBA79A58FF5C7B\",1)"},71800,null,"LZW7157EGU\n国Ⅵ China Ⅵ\n 国六b RDE","S33K","UR0\n1.485L CVT","LV1 (5座，前置空调G，EPS，ABS+EBD+ESC，前盘后盘，前中门电动门窗，铝合金车轮，双气囊，倒车雷达，无钥匙进入，一键启动，LED灯，皮革座椅，可视倒车+8寸中控屏+USB+收音机+蓝牙，2个扬声器，扭力梁式半独立悬挂) \nLV1（5 Seats, A/C-G, EPS, ABS+EBD+ESC, Front and Rear Disk, Front and Middle Power Windows, Alloy Wheel, Dual airbag, Rear Parking Sensors, Remote Keyless Entry, One Button Ignition, LED Lighting, Simulated Leather Seats, Reversing Video+8 inch Screen+USB+Radio+Bluetooth, 2 Speakers, Torsion Beam Coil Spring Semi-independent Rear Suspension）",56224.4897959184,55857.1428571429,55051.0204081633,8172.16421452302,8118.7707641196,8001.6018035121,{"$f":"_xlfn.DISPIMG(\"ID_15D12BF627E2435D8A068CCE57814663\",1)","v":"=DISPIMG(\"ID_15D12BF627E2435D8A068CCE57814663\",1)"},{"$f":"_xlfn.DISPIMG(\"ID_F53CA72970A14E31822AEB8C990D4A4E\",1)","v":"=DISPIMG(\"ID_F53CA72970A14E31822AEB8C990D4A4E\",1)"}]

{"sheet":"扬光","index":13,"n_rows":6,"n_cols":18,"rows_kept":6,"cut":false,"hidden":false,"merged":[[1,0,2,0],[4,0,5,0],[1,5,2,5],[4,5,5,5],[1,6,2,6],[4,6,5,6],[1,8,2,8],[4,8,5,8],[3,17,4,17]]}
["国内名称","推广命名","版本","图片Pic","官方指导价","系列\nSeries","型号\nModel","车型代码\nModelCode","发动机代码\nEngine Code ","主要配置描述\nMajor Configurations Description","\nFOB价格\nFOB Price (RMB)","\nFCA价格\nFCA Price (RMB)","\nEXW价格\nEXW Price (RMB)","\nFOB价格\nFOB Price (USD)","\nFCA价格\nFCA Price (USD)","\nEXW价格\nEXW Price (USD)","图片Pic"]
["五菱扬光纯电 -封窗版","五菱扬光 封窗车 300km 实用型","300km纯电实用型   【出口版可选】",{"$f":"_xlfn.DISPIMG(\"ID_FB27A319A31A481EB626D1545B9DD1FF\",1)","v":"=DISPIMG(\"ID_FB27A319A31A481EB626D1545B9DD1FF\",1)"},79800,"扬光厢式运输车 EV\nN350V Cargo EV","LZW5032XXYEVA3","YH1S","续航：300公里\nCLTC mileage:\n300 KM","LV1 (2座，前置空调G，EPS，前电动门窗，ABS，前盘后鼓，铁车轮，中控门锁，遥控钥匙，隔离栏， 交流插座250V/32A+直流插座750V/125A，收音机+USB+蓝牙，后钢板弹簧非独立悬架)   \nLV1 (2 Seats, A/C-G, EPS, Front Power Window, ABS, Front Disk and Rear Drum, Steel Wheel, Power Door Lock, Remote Key, CAB Shelter, AC Socket-250V/32A, DC Socket-750V/125A，Radio+USB+Bluetooth, Rear Leaf Spring Non Isolated Rear Suspension)",72755.1020408163,72387.7551020408,71295.9183673469,10574.8694826768,10521.4760322734,10362.7788324632,{"$f":"_xlfn.DISPIMG(\"ID_73DD5649E0D34B33B0CF902B7AA13E07\",1)","v":"=DISPIMG(\"ID_73DD5649E0D34B33B0CF902B7AA13E07\",1)"}]
[null,"五菱扬光 封窗车 300km 舒适型","300km纯电舒适型  【出口版可选】",{"$f":"_xlfn.DISPIMG(\"ID_59016BC8FE3343BD98DD25412E66036D\",1)","v":"=DISPIMG(\"ID_59016BC8FE3343BD98DD25412E66036D\",1)"},83800,null,null,"YH1W",null,"LV2 (2座，前置空调G，EPS，前电动门窗，ABS，前盘后鼓，铁车轮，驾驶员气囊，后驻车雷达，中控门锁，遥控钥匙，隔离栏，交流插座250V/32A+直流插座750V/125A，可视倒车+8英寸屏+收音机+蓝牙+USB，后钢板弹簧非独立悬架)   \nLV2 (2 Seats, A/C-G, EPS, Front Power Window, ABS, Front Disk and Rear Drum, Steel Wheel, Driver Airbag, Rear Parking Sensors, Power Door Lock, Remote Key, CAB Shelter,  AC Socket-250V/32A, DC Socket-750V/125A, Reversing Video+8 inch Screen+Radio+Bluetooth+USB,  Rear Leaf Spring Non Isolated Rear Suspension)",74081.6326530612,73714.2857142857,72622.4489795918,10767.6791646891,10714.2857142857,10555.5885144756,{"$f":"_xlfn.DISPIMG(\"ID_73DD5649E0D34B33B0CF902B7AA13E07\",1)","v":"=DISPIMG(\"ID_73DD5649E0D34B33B0CF902B7AA13E07\",1)"}]
["五菱扬光纯电 -客车版","五菱扬光 客车版 300km 舒适型","300km纯电舒适型 6座【出口版可选】",{"$f":"_xlfn.DISPIMG(\"ID_C4D4D65CD1A245BF98F6C0A9F7036FFD\",1)","v":"=DISPIMG(\"ID_C4D4D65CD1A245BF98F6C0A9F7036FFD\",1)"},81800,"扬光客车 EV 中文版\nN350V VAN EV ","LZW6500EVA2","YH1M","续航：300公里\nCLTC mileage:\n300 KM","LV1 (6座，前置空调G，前电动门窗，EPS，ABS+EBD，前盘后鼓，铁车轮，驾驶员气囊，后倒车雷达，中控门锁，遥控钥匙，织物座椅，交流插座250V/32A+直流插座750V/125A，收音机+USB+蓝牙，后钢板弹簧非独立悬架)   \nLV1 (6 Seats, A/C-G, Front Power Window,  EPS, ABS+EBD, Front Disk and Rear Drum, Steel Wheel, Driver Airbag, Rear Parking Sensors, Power Door Lock, Remote Key, Textile Seats, AC Socket-250V/32A, DC Socket-750V/125A，Radio+USB+Bluetooth, Rear Leaf Spring Non Isolated Rear Suspension)",73265.306122449,72897.9591836735,71806.1224489796,10649.0270526815,10595.6336022781,10436.936402468,{"$f":"_xlfn.DISPIMG(\"ID_E825E021A3DD49F8898452826938D300\",1)","v":"=DISPIMG(\"ID_E825E021A3DD49F8898452826938D300\",1)"},{"$f":"_xlfn.DISPIMG(\"ID_9B9E9839ED8C468680ED8A814F4FFA13\",1)","v":"=DISPIMG(\"ID_9B9E9839ED8C468680ED8A814F4FFA13\",1)"}]
["五菱扬光纯电 -客车版","五菱扬光 客车版 440km 6座","440km纯电舒适型 6座",{"$f":"_xlfn.DISPIMG(\"ID_1ED016E4C2BD4F1899ED11E06464AC05\",1)","v":"=DISPIMG(\"ID_1ED016E4C2BD4F1899ED11E06464AC05\",1)"},89800,"扬光客车 EV 中文版\nN350V VAN EV ","LZW6500BEVA9","YH3D","续航：440公里\nCLTC mileage:\n440 KM","LV1 (6座，前置空调G，前电动门窗，EPS，ABS+EBD，前盘后鼓，铁车轮，驾驶员气囊，后倒车雷达，中控门锁，遥控钥匙，织物座椅，交流插座250V/32A+直流插座1000V/250A，收音机+USB+蓝牙，后钢板弹簧非独立悬架)   \nLV1 (6 Seats, A/C-G, Front Power Window,  EPS, ABS+EBD, Front Disk and Rear Drum, Steel Wheel, Driver Airbag, Rear Parking Sensors, Power Door Lock, Remote Key, Textile Seats, AC Socket-250V/32A, DC Socket-1000V/250A，Radio+USB+Bluetooth, Rear Leaf Spring Non Isolated Rear Suspension)",79387.7551020408,79020.4081632653,77928.5714285714,11538.7755102041,11485.7142857143,11326.5306122449,"=DISPIMG(\"ID_E825E021A3DD49F8898452826938D300\",1)"]
[null,"五菱扬光 客车版 440km 9座","440km纯电舒适型 9座 ",{"$f":"_xlfn.DISPIMG(\"ID_2FB222F609C34F8DB655520B8B6CB914\",1)","v":"=DISPIMG(\"ID_2FB222F609C34F8DB655520B8B6CB914\",1)"},92800,null,null,"YH3F",null,"LV1 (9座，空调H，前电动门窗，EPS，ABS+EBD，前盘后鼓，铁车轮，驾驶员气囊，后倒车雷达，中控门锁，遥控钥匙，织物座椅，交流插座250V/32A+直流插座1000V/250A，收音机+USB+蓝牙，后钢板弹簧非独立悬架)   \nLV1 (9 Seats, A/C-G, Front Power Window,  EPS, ABS+EBD, Front Disk and Rear Drum, Steel Wheel, Driver Airbag, Rear Parking Sensors, Power Door Lock, Remote Key, Textile Seats, AC Socket-250V/32A, DC Socket-1000V/250A，Radio+USB+Bluetooth, Rear Leaf Spring Non Isolated Rear Suspension)",81122.4489795918,80755.1020408163,79663.2653061225,11790.8163265306,11737.7551020408,11578.5714285714,"=DISPIMG(\"ID_E825E021A3DD49F8898452826938D300\",1)"]

{"sheet":"迷你","index":14,"n_rows":8,"n_cols":18,"rows_kept":8,"cut":false,"hidden":false,"merged":[[4,5,7,5],[4,17,7,17]]}
["国内名称","推广命名","版本","图片Pic","官方指导价","系列\nSeries","型号\nModel","车型代码\nModelCode","发动机代码\nEngine Code ","主要配置描述\nMajor Configurations Description","\nFOB价格\nFOB Price (RMB)","\nFCA价格\nFCA Price (RMB)","\nEXW价格\nEXW Price (RMB)","\nFOB价格\nFOB Price (USD)","\nFCA价格\nFCA Price (USD)","\nEXW价格\nEXW Price (USD)","图片Pic"]
["宏光miniEV            第三代四座两门版","第三代宏光MINIEV 215km 青春版","205km青春版",{"$f":"_xlfn.DISPIMG(\"ID_FD0BFA05732C4AE290B4B7E3F3C4B3FE\",1)","v":"=DISPIMG(\"ID_FD0BFA05732C4AE290B4B7E3F3C4B3FE\",1)"},40800,"宏光mini EV第三代马卡龙\nE50 MCE","LZW7004EVA4","T5L7","续航：215公里\nCLTC mileage:\n215KM","LV1 (4座，前置空调G，电动门窗，EPS，ABS+EBD，前盘后鼓，铁车轮，胎压监测，双气囊，倒车雷达，LED灯，中控门锁，遥控钥匙，手提式驻车制动，织物座椅，奶酪白+沙砾棕内饰，蓝牙+收音机+USB，直流快充（30-80%-0.58h）电池包带加热, 2个扬声器，前麦弗逊式后螺旋弹簧三连杆式半独立悬架）\nLV1 (4 Seats, A/C-G, Power Windows, EPS, ABS+EBD, Front Disk and Rear Drum, Steel Wheel, TPMS, Dual Airbag, Rear Parking Sensors, LED Light, Power Door Lock, Remote Key, Portable Parking Brake, Fabric Seats, Cheese White+Sand Brown Interior, Bluetooth+Radio+USB, Battery Pack with Heating, DC Fast Charge (30-80%-0.58h), 2 Speakers, Front McPherson Strut Rear 3-link Coil spring half isolate Suspension)",44081.6326530612,43714.2857142857,43010.2040816327,6407.21404841006,6353.82059800664,6251.4831514001,{"$f":"_xlfn.DISPIMG(\"ID_25EFD3C93B3948AA8647F5452B0C6C46\",1)","v":"=DISPIMG(\"ID_25EFD3C93B3948AA8647F5452B0C6C46\",1)"}]
["宏光miniEV 四门版","宏光MINIEV四门版 进阶款","205km进阶型    ",{"$f":"_xlfn.DISPIMG(\"ID_9463B90B556B4943828B19326321F3D4\",1)","v":"=DISPIMG(\"ID_9463B90B556B4943828B19326321F3D4\",1)"},44800,"宏光mini EV第四代 出口版\nE110C EV English version","LZW7001EVD1","MR2R","续航：205公里\nCLTC mileage:\n205KM","LV1 (4门4座，前置空调G，电动门窗，EPS，ABS+EBD，前盘后鼓，铁车轮，胎压监测，驾驶员气囊，倒车雷达，LED灯，中控门锁，遥控钥匙，手提式驻车制动，织物座椅，咖啡棕+贝壳米，蓝牙+收音机+USB，直流快充, 2个扬声器，前麦弗逊式后螺旋弹簧三连杆式半独立悬架）\nLV1 (4 doors & 4 Seats, A/C-G, Power Windows, EPS, ABS+EBD, Front Disk and Rear Drum, Steel Wheel, TPMS, Driver Airbag, Rear Parking Sensors, LED Light, Power Door Lock, Remote Key, Portable Parking Brake, Fabric Seats, Brown + Beige Interior, Bluetooth+Radio+USB, Battery Pack with Heating, DC Fast Charge, 2 Speakers, Front McPherson Strut Rear 3-link Coil spring half isolate Suspension)",45408.1632653061,45040.8163265306,44020.4081632653,6600.0237304224,6546.63028001899,6398.31514000949,{"$f":"_xlfn.DISPIMG(\"ID_C5F4958CB1B64D1A889BAB943F7A2D10\",1)","v":"=DISPIMG(\"ID_C5F4958CB1B64D1A889BAB943F7A2D10\",1)"}]
["宏光miniEV 四门版","宏光MINIEV四门版 臻享款","205km臻享版型      【出口版可选】",{"$f":"_xlfn.DISPIMG(\"ID_73306C912156421E9F2349AA88613072\",1)","v":"=DISPIMG(\"ID_73306C912156421E9F2349AA88613072\",1)"},49800,"宏光mini EV第四代 中文版\nE110C EV Chinese version","LZW7001EVD1","MR0U","续航：205公里\nCLTC mileage:\n205KM","LV2 (4门4座，前置空调G，电动门窗，EPS，ABS+EBD，前盘后鼓，铁车轮，胎压监测，双气囊，倒车雷达，LED灯，中控门锁，遥控钥匙，手提式驻车制动，织物座椅，咖啡棕+贝壳米，8寸屏+蓝牙+收音机+USB，直流快充（30-80%-0.58h）电池包带加热, 2个扬声器，前麦弗逊式后螺旋弹簧三连杆式半独立悬架）\nLV2 (4 doors & 4 Seats, A/C-G, Power Windows, EPS, ABS+EBD, Front Disk and Rear Drum, Steel Wheel, TPMS, Dual Airbag, Rear Parking Sensors, LED Light, Power Door Lock, Remote Key, Portable Parking Brake, Fabric Seats, Brown + Beige Interior, 8 Inch Screen + Bluetooth+Radio+USB, Battery Pack with Heating, DC Fast Charge (30-80%-0.58h), 2 Speakers, Front McPherson Strut Rear 3-link Coil spring half isolate Suspension)",47244.8979591837,46877.5510204082,45857.1428571429,6866.99098243949,6813.59753203607,6665.28239202658,{"$f":"_xlfn.DISPIMG(\"ID_3FAB3C9E3D114E5C8CBF09EA5487F9AB\",1)","v":"=DISPIMG(\"ID_3FAB3C9E3D114E5C8CBF09EA5487F9AB\",1)"}]
["宏光mini第五代","第五代宏光MINIEV 205km 进阶款","205km 进阶款",{"$f":"_xlfn.DISPIMG(\"ID_20C2FB1BFD6B4849B7F3928779135289\",1)","v":"=DISPIMG(\"ID_20C2FB1BFD6B4849B7F3928779135289\",1)"},44800,"宏光mini EV第五代 E112C Hongguang Mini EV, fifth generation E112C","LZW7001BEVEC","NE0E","续航：205公里\nCLTC mileage:\n205KM","LV1 (4门4座，空调G，电动门窗，EPS，ABS+EBD，前盘后鼓，铁车轮，胎压监测，双气囊，倒车雷达，LED灯，中控门锁，遥控钥匙，织物座椅，咖啡棕+奶盐米，蓝牙+收音机+USB，直流快充, 2个扬声器，前麦弗逊式后螺旋弹簧三连杆式半独立悬架）\nLV1 (4 doors & 4 Seats, A/C-G, Power Windows, EPS, ABS+EBD, Front Disk and Rear Drum, Steel Wheel, TPMS, Dual Airbag, Rear Parking Sensors, LED Light, Power Door Lock, Remote Key, Fabric Seats, Brown + Beige Interior, Bluetooth+Radio+USB, Battery Pack with Heating, DC Fast Charge, 2 Speakers, Front McPherson Strut Rear 3-link Coil spring half isolate Suspension)",45204.0816326531,44836.7346938776,43459.1836734694,6570.3607024205,6516.96725201709,6316.74181300427,{"$f":"_xlfn.DISPIMG(\"ID_75777906FF9E41BCA266814CFD5106D9\",1)","v":"=DISPIMG(\"ID_75777906FF9E41BCA266814CFD5106D9\",1)"},{"$f":"_xlfn.DISPIMG(\"ID_E3683D66C8F6464FA68160FD4977066C\",1)","v":"=DISPIMG(\"ID_E3683D66C8F6464FA68160FD4977066C\",1)"}]
["宏光mini第五代","第五代宏光MINIEV 205km 臻享款","205km 臻享款",{"$f":"_xlfn.DISPIMG(\"ID_E2B176E4A33141928A1304D578E14EE0\",1)","v":"=DISPIMG(\"ID_E2B176E4A33141928A1304D578E14EE0\",1)"},49800,null,"LZW7001BEVEC","NE0J","续航：205公里\nCLTC mileage:\n205KM","LV2 (4门4座，空调G，电动门窗，EPS，ABS+EBD，前盘后鼓，铁车轮，胎压监测，双气囊，倒车雷达，LED灯，中控门锁，遥控钥匙，织物座椅，咖啡棕+奶盐米，10.1寸屏+蓝牙+收音机+USB，直流快充, 2个扬声器，前麦弗逊式后螺旋弹簧三连杆式半独立悬架）\nLV2 (4 doors & 4 Seats, A/C-G, Power Windows, EPS, ABS+EBD, Front Disk and Rear Drum, Steel Wheel, TPMS, Dual Airbag, Rear Parking Sensors, LED Light, Power Door Lock, Remote Key, Fabric Seats, Brown + Beige Interior, 10.1 Inch Screen + Bluetooth+Radio+USB, Battery Pack with Heating, DC Fast Charge, 2 Speakers, Front McPherson Strut Rear 3-link Coil spring half isolate Suspension)",47653.0612244898,47285.7142857143,45908.1632653061,6926.31703844329,6872.92358803987,6672.69814902705,{"$f":"_xlfn.DISPIMG(\"ID_75777906FF9E41BCA266814CFD5106D9\",1)","v":"=DISPIMG(\"ID_75777906FF9E41BCA266814CFD5106D9\",1)"}]
["宏光mini第五代","第五代宏光MINIEV 301km 进阶款","301km 进阶款",{"$f":"_xlfn.DISPIMG(\"ID_5041A0D03F4E4267B0556B9784DB2E6B\",1)","v":"=DISPIMG(\"ID_5041A0D03F4E4267B0556B9784DB2E6B\",1)"},49800,null,"LZW7001BEVE9","NE0H","续航：301公里\nCLTC mileage:\n301 KM","LV1 (4门4座，空调G，电动门窗，EPS，ABS+EBD，前盘后鼓，铁车轮，胎压监测，双气囊，倒车雷达，LED灯，中控门锁，遥控钥匙，织物座椅，咖啡棕+奶盐米，蓝牙+收音机+USB，直流快充, 2个扬声器，前麦弗逊式后螺旋弹簧三连杆式半独立悬架）\nLV1 (4 doors & 4 Seats, A/C-G, Power Windows, EPS, ABS+EBD, Front Disk and Rear Drum, Steel Wheel, TPMS, Dual Airbag, Rear Parking Sensors, LED Light, Power Door Lock, Remote Key, Fabric Seats, Brown + Beige Interior, Bluetooth+Radio+USB, Battery Pack with Heating, DC Fast Charge, 2 Speakers, Front McPherson Strut Rear 3-link Coil spring half isolate Suspension)","/","/","/","/","/","/",{"$f":"_xlfn.DISPIMG(\"ID_75777906FF9E41BCA266814CFD5106D9\",1)","v":"=DISPIMG(\"ID_75777906FF9E41BCA266814CFD5106D9\",1)"}]
["宏光mini第五代","第五代宏光MINIEV 301km 臻享款","301km 臻享款",{"$f":"_xlfn.DISPIMG(\"ID_235E09574112481083921AEE7AAA9280\",1)","v":"=DISPIMG(\"ID_235E09574112481083921AEE7AAA9280\",1)"},54800,null,"LZW7001BEVED","NE0N","续航：301公里\nCLTC mileage:\n301 KM","LV2 (4门4座，空调G，电动门窗，EPS，ABS+EBD，前盘后鼓，铁车轮，胎压监测，双气囊，倒车雷达，LED灯，中控门锁，遥控钥匙，织物座椅，咖啡棕+奶盐米，10.1寸屏+蓝牙+收音机+USB，直流快充, 2个扬声器，前麦弗逊式后螺旋弹簧三连杆式半独立悬架）\nLV2 (4 doors & 4 Seats, A/C-G, Power Windows, EPS, ABS+EBD, Front Disk and Rear Drum, Steel Wheel, TPMS, Dual Airbag, Rear Parking Sensors, LED Light, Power Door Lock, Remote Key, Fabric Seats, Brown + Beige Interior, 10.1 Inch Screen + Bluetooth+Radio+USB, Battery Pack with Heating, DC Fast Charge, 2 Speakers, Front McPherson Strut Rear 3-link Coil spring half isolate Suspension)",52346.9387755102,51979.5918367347,50602.0408163265,7608.56668248695,7555.17323208353,7354.94779307072,{"$f":"_xlfn.DISPIMG(\"ID_75777906FF9E41BCA266814CFD5106D9\",1)","v":"=DISPIMG(\"ID_75777906FF9E41BCA266814CFD5106D9\",1)"}]

{"sheet":"五菱荣光新卡燃油","index":15,"n_rows":5,"n_cols":17,"rows_kept":5,"cut":false,"hidden":false,"merged":[[1,0,4,0],[1,5,2,5],[1,8,2,8]]}
["国内名称","推广命名","版本","图片Pic","官方指导价","系列\nSeries","型号\nModel","车型代码\nModelCode","发动机代码\nEngine Code ","主要配置描述\nMajor Configurations Description","\nFOB价格\nFOB Price (RMB)","\nFCA价格\nFCA Price (RMB)","\nEXW价格\nEXW Price (RMB)","\nFOB价格\nFOB Price (USD)","\nFCA价格\nFCA Price (USD)","\nEXW价格\nEXW Price (USD)","图片Pic"]
["五菱荣光新卡 燃油","五菱荣光新卡 1.5L 5MT 单排","1.5L-5MT-基本型- 单排-仓栅车-",{"$f":"_xlfn.DISPIMG(\"ID_0CEC014DDF2445D58FFBAF95666253D8\",1)","v":"=DISPIMG(\"ID_0CEC014DDF2445D58FFBAF95666253D8\",1)"},57800,"五菱荣光新卡 1.5L 5MT 单排","LZW5028CCYEQUAN\n国六B（RDE）","AJAS","VY5\n(1.485L)\n5MT","LV0 （2座，仓栅车-单蒸空调-晴空银-加强仓栅，收音机+USB&蓝牙，前门电动窗）\nLV0 (2 Seats, Garage van - Single-stage air conditioning - Clear Sky Silver - Reinforced garage door, Radio + USB & Bluetooth, Front door electric window)",48163.2653061224,47795.9183673469,46622.4489795918,7000.47460844803,6947.08115804461,6776.5187470337,{"$f":"_xlfn.DISPIMG(\"ID_D3DDBFDB3FFC4E61BFB4C58DDC241DE0\",1)","v":"=DISPIMG(\"ID_D3DDBFDB3FFC4E61BFB4C58DDC241DE0\",1)"}]
[null,"五菱荣光新卡 1.5L 5MT 单排","1.5L-5MT-基本型- 单排-货柜车",{"$f":"_xlfn.DISPIMG(\"ID_FCD1D56CF6F2484FACA9BB6D782CEFDA\",1)","v":"=DISPIMG(\"ID_FCD1D56CF6F2484FACA9BB6D782CEFDA\",1)"},57300,null,"LZW5028XXYEQU\n国六B（RDE）","AJBL",null,"LV0 （2座，货柜车-单蒸空调-晴空银-单层货柜，侧开门，收音机+USB&蓝牙，前门电动窗）\nLV0 (2 Seats, Container truck - Single-stage air conditioning - Clear Sky Silver - Single-layer container, Side door, Radio + USB & Bluetooth, Front door electric window)",48163.2653061224,47795.9183673469,46622.4489795918,7000.47460844803,6947.08115804461,6776.5187470337,{"$f":"_xlfn.DISPIMG(\"ID_F902FE24BC5542F1A5C205CFE426D060\",1)","v":"=DISPIMG(\"ID_F902FE24BC5542F1A5C205CFE426D060\",1)"}]
[null,"五菱荣光新卡双后轮 2.0L 5MT 单排","双后轮-2.0L-5MT-基本型-单排-仓栅车",{"$f":"_xlfn.DISPIMG(\"ID_E2891F951EE54FE8889787B33071B41D\",1)","v":"=DISPIMG(\"ID_E2891F951EE54FE8889787B33071B41D\",1)"},63500,"五菱荣光新卡双后轮 2.0L 5MT 单排","LZW5030CCYLGHUG\n国六B（RDE）","AGGH","VR5\n(1.999L)\n5MT","LV0 （2座，仓栅车-单蒸空调-晴空银-加强型仓栅，倒车雷达，EPS，ABS）\nLV0 (2 Seats, Garage trailer - Single-stage air conditioning - Clear Sky Silver - Reinforced garage guardrail, Reversing radar, EPS, ABS)",58367.3469387755,58000,56826.5306122449,8483.62600854295,8430.23255813953,8259.67014712862,{"$f":"_xlfn.DISPIMG(\"ID_D3DDBFDB3FFC4E61BFB4C58DDC241DE0\",1)","v":"=DISPIMG(\"ID_D3DDBFDB3FFC4E61BFB4C58DDC241DE0\",1)"}]
[null,"五菱荣光新卡双后轮 2.0L 5MT 单排","双后轮-2.0L-5MT-基本型-单排-货柜车-单层货柜，侧开",{"$f":"_xlfn.DISPIMG(\"ID_FB695A745DB3411288D8706C4480D95C\",1)","v":"=DISPIMG(\"ID_FB695A745DB3411288D8706C4480D95C\",1)"},57800,"五菱荣光新卡双后轮 2.0L 5MT 单排","LZW5030XXYLGHUG\n国六B（RDE）","AGMC","VR5\n(1.999L)\n5MT","LV0 （2座，货柜车-单蒸空调-晴空银-单层货柜，侧开门，倒车雷达，EPS，ABS）\nLV0 (2 Seats, Container truck - Single-stage air conditioning - Clear Sky Silver - Single-layer container, Side door, Reversing radar, EPS, ABS)",57551.0204081633,57183.6734693878,56010.2040816327,8364.97389653536,8311.58044613194,8141.01803512103,{"$f":"_xlfn.DISPIMG(\"ID_F902FE24BC5542F1A5C205CFE426D060\",1)","v":"=DISPIMG(\"ID_F902FE24BC5542F1A5C205CFE426D060\",1)"}]

{"sheet":"荣光小卡","index":16,"n_rows":25,"n_cols":17,"rows_kept":25,"cut":false,"hidden":false,"merged":[[3,5,4,5],[6,5,7,5],[11,5,12,5],[16,5,17,5],[18,5,19,5],[20,5,24,5],[3,6,4,6],[16,6,17,6],[18,6,19,6],[20,6,22,6],[23,6,24,6],[3,8,4,8],[16,8,17,8],[18,8,24,8]]}
["国内名称","推广命名","版本","图片pic","官方指导价","系列\nSeries","型号\nModel","车型代码\nModelCode","发动机代码\nEngine Code ","主要配置描述\nMajor Configurations Description","\nFOB价格\nFOB Price (RMB)","\nFCA价格\nFCA Price (RMB)","\nEXW价格\nEXW Price (RMB)","\nFOB价格\nFOB Price (USD)","\nFCA价格\nFCA Price (USD)","\nEXW价格\nEXW Price (USD)","图片Pic"]
["五菱荣光小卡 燃油","五菱荣光小卡 1.5L 5MT 单排","1.5L-5MT-基本型-单排-平板车",null,null,"荣光单排货车\nN300 Single Cab Pickup","LZW1029EQUA\n国Ⅵ China Ⅵ\n国六b RDE","XHJU","VY5\n(1.485L)\n5MT","LV0 (2座，前置空调G，ABS，铁车轮)  \nLV0（2 Seats, A/C-G,  ABS, Steel Wheel）",35918.3673469388,35551.0204081633,34459.1836734694,5220.69292833412,5167.29947793071,5008.60227812055,{"$f":"_xlfn.DISPIMG(\"ID_BE1F33C9A6FA4A19B1193E98215C6621\",1)","v":"=DISPIMG(\"ID_BE1F33C9A6FA4A19B1193E98215C6621\",1)"}]
[null,"五菱荣光小卡加长版 1.5L 5MT 单排",null,null,null,"荣光单排货车加长版\nN300 Single Cab Pickup Extended","LZW1029LEQUA","XHKG","1.5L 5MT","LV0 (2座，ABS，铁车轮)  \nLV0（2 Seats, ABS, Steel Wheel）",35200,34734.693877551,33642.8571428571,5102.04081632653,5048.64736592311,4889.95016611296,{"$f":"_xlfn.DISPIMG(\"ID_763DD3D42B8A4FE4A6604BED64D7D740\",1)","v":"=DISPIMG(\"ID_763DD3D42B8A4FE4A6604BED64D7D740\",1)"}]
[null,"五菱荣光小卡 1.5L 5MT 双排",null,null,null,"荣光双排货车\nN300 Double Cab Pickup","LZW1029SEQUA\n国Ⅵ China Ⅵ\n国六b RDE","XHKR","VY5\n(1.485L)\n5MT","LV0（5座，前置空调G，ABS，铁车轮） \nLV0（5 Seats, A/C-G,  ABS, Steel Wheel）",37600,37183.6734693878,36163.2653061224,5457.99715234931,5404.6037019459,5256.2885619364,{"$f":"_xlfn.DISPIMG(\"ID_FD6769260E974CC2BE8C46B8304F8C30\",1)","v":"=DISPIMG(\"ID_FD6769260E974CC2BE8C46B8304F8C30\",1)"}]
[null,"五菱荣光小卡 1.5L 5MT 双排",{"$nulls":5},"XHLC",null,"LV0（5座，前置空调G，EPS，ABS，前电动门窗，中控锁，遥控钥匙，铁车轮)  \nLV0（5 Seats, A/C-G, EPS, ABS, Front Power Window, Power Door Lock, Remote Key, Steel Wheel）",39200,38816.3265306122,37795.9183673469,5695.3013763645,5641.90792596108,5493.59278595159,{"$f":"_xlfn.DISPIMG(\"ID_FD6769260E974CC2BE8C46B8304F8C30\",1)","v":"=DISPIMG(\"ID_FD6769260E974CC2BE8C46B8304F8C30\",1)"}]
[null,"五菱荣光小卡加长版 1.5L 5MT 双排",null,null,null,"荣光双排货车加长版\nN300 Double Cab Pickup Extened","LZW1029SLEQUA","XHLG","1.5L 5MT","LV0 (5座，ABS，铁车轮)  \nLV0（5 Seats, ABS, Steel Wheel）",36800,36367.3469387755,35346.9387755102,5339.34504034172,5285.9515899383,5137.63644992881,{"$f":"_xlfn.DISPIMG(\"ID_7B7192E2EF2B464E87E047637A5FE170\",1)","v":"=DISPIMG(\"ID_7B7192E2EF2B464E87E047637A5FE170\",1)"}]
[null,"五菱荣光新卡 1.5L 5MT 单排",null,null,null,"荣光新单排货车\nN350 Single Cab Pickup","LZW1028EQU\n国Ⅵ China Ⅵ\n国六b RDE","AGWE","UX5\n(1.485L)\n5MT","LV0 (2座，前置空调G，EPS，ABS+EBD，前电动门窗，收音机+蓝牙+USB，铁车轮)  \nLV0（2 Seats, A/C-G, EPS, ABS+EBD, Front  Power Window, Radio+Bluetooth+USB, Steel Wheel）",43300,42897.9591836735,41724.4897959184,6288.56193640247,6235.16848599905,6064.60607498814,{"$f":"_xlfn.DISPIMG(\"ID_05174C1153BA47FF8552C6F3F9522E13\",1)","v":"=DISPIMG(\"ID_05174C1153BA47FF8552C6F3F9522E13\",1)"}]
[null,"五菱荣光新卡 2.0L 5MT 单排",{"$nulls":4},"LZW1028GHU\n国Ⅵ China Ⅵ\n国六b RDE","AG8H","VQ5\n(1.999L)\n5MT","LV0 (2座，前置空调G，EPS，ABS+EBD，前电动门窗，收音机+蓝牙+USB，铁车轮)  \nLV0（2 Seats, A/C-G, EPS, ABS+EBD, Front  Power Window, Radio+Bluetooth+USB, Steel Wheel）",47300,46877.5510204082,45704.0816326531,6866.99098243949,6813.59753203607,6643.03512102515,"=DISPIMG(\"ID_05174C1153BA47FF8552C6F3F9522E13\",1)"]
[null,"五菱荣光新卡加长版 1.5L 5MT 单排",null,null,null,"荣光新单排货车-加长版\nN350 Single Cab Pickup","LZW1028LEQUH\n国Ⅵ China Ⅵ\n国六B（RDE）","AGXD","VY5\n(1.485L)\n5MT","LV1(2座，前置空调G，ABS+EPS，前电动门窗，8英寸触摸屏+可视倒车雷达+收音机+蓝牙+USB，铁车轮)\nLV1(2 Seats, A/C-G, ABS+EPS, Front  Power Window, 8 inch Touchable Screen+Visible Reversing Radar+Radio+Bluetooth+USB, Steel Wheel)",45200,44836.7346938776,43663.2653061224,6570.3607024205,6516.96725201709,6346.40484100617,"=DISPIMG(\"ID_05174C1153BA47FF8552C6F3F9522E13\",1)"]
[null,"五菱荣光新卡 1.5L 5MT 单排",null,null,null,"荣光新单排货柜车\nN350 Single Cab Cargo","LZW5028XXYEQU\n国Ⅵ China Ⅵ\n国六B（RDE）","AJAN","VY5\n(1.485L)\n5MT","LV0 （2座，货柜车-单蒸空调-双层货柜，侧开门，发泡板，前门电动窗）\nLV0 (2 Seats, Container truck - single-stage air conditioning - double-layer container, Side door, Foam board, Front door electric window)",49500,49122.4489795918,47948.9795918367,7193.28429046037,7139.89084005695,6969.32842904604,{"$f":"_xlfn.DISPIMG(\"ID_7E1AAECF202E4904AA0C6B0464D9A29B\",1)","v":"=DISPIMG(\"ID_7E1AAECF202E4904AA0C6B0464D9A29B\",1)"}]
[null,"五菱荣光新卡加长版 1.5L 5MT 单排",{"$nulls":4},"LZW5028XXYLEQUAV\n国Ⅵ China Ⅵ\n国六B（RDE）","AJCF","VY5\n(1.485L)\n5MT","LV0 （2座，货柜车-单蒸空调-单层货柜，侧开门）\nLV0 (2 Seats, Container truck - Single-stage air conditioning - Single-layer container, Side-opening door)",49500,49122.4489795918,47948.9795918367,7193.28429046037,7139.89084005695,6969.32842904604,{"$f":"_xlfn.DISPIMG(\"ID_7E1AAECF202E4904AA0C6B0464D9A29B\",1)","v":"=DISPIMG(\"ID_7E1AAECF202E4904AA0C6B0464D9A29B\",1)"}]
[null,"五菱荣光新卡 1.5L 5MT 双排",null,null,null,"荣光新双排货车\nN350 Double Cab Pickup","LZW1028SEQU\n国Ⅵ China Ⅵ\n国六b RDE","AGYE","VY5\n(1.485L)\n5MT","LV0 (5座，前置空调G，EPS，ABS+EBD，前电动门窗，收音机+蓝牙+USB，铁车轮)  \nLV0（5 Seats, A/C-G, EPS, ABS+EBD, Front  Power Window, Radio+Bluetooth+USB, Steel Wheel）",43900,43510.2040816327,42224.4897959184,6377.55102040816,6324.15757000475,6137.28049359279,{"$f":"_xlfn.DISPIMG(\"ID_6E6F769F285846568A818949FC71124F\",1)","v":"=DISPIMG(\"ID_6E6F769F285846568A818949FC71124F\",1)"}]
[null,"五菱荣光新卡 2.0L 5MT 双排",{"$nulls":4},"LZW1028SGHU\n国Ⅵ China Ⅵ\n国六b RDE","AGAW","VQ5\n(1.999L)\n5MT","LV0 (5座，前置空调G，EPS，ABS+EBD，前电动门窗，收音机+蓝牙+USB，铁车轮)  \nLV0（5 Seats, A/C-G, EPS, ABS+EBD, Front  Power Window, Radio+Bluetooth+USB, Steel Wheel）",50200,49836.7346938776,48551.0204081633,7297.10488846702,7243.7114380636,7056.83436165164,"=DISPIMG(\"ID_6E6F769F285846568A818949FC71124F\",1)"]
[null,"五菱荣光新卡加长版 1.5L 5MT 双排",null,null,null,"荣光新双排货车-加长版\nN350 Double Cab Pickup","LZW1028SLEQUH\n国Ⅵ China Ⅵ\n国六B（RDE）","AGZD","VY5\n(1.485L)\n5MT","LV1(5座，前置空调G，ABS+EPS，前电动门窗，8英寸触摸屏+可视倒车雷达+收音机+蓝牙+USB，铁车轮)\nLV1(5 Seats, A/C-G, ABS+EPS, Front  Power Window, 8 inch Touchable Screen+Visible Reversing Radar+Radio+Bluetooth+USB, Steel Wheel)",48600,48204.0816326531,46918.3673469388,7059.80066445183,7006.40721404841,6819.53013763645,"=DISPIMG(\"ID_6E6F769F285846568A818949FC71124F\",1)"]
[null,"五菱荣光新卡 1.5L 5MT 双排",null,null,null,"荣光新双排货柜车\nN350 Double Cab Cargo","LZW5028XXYSEQU\n国Ⅵ China Ⅵ\n国六B（RDE）","AJDR","VY5\n(1.485L)\n5MT","LV0 （5座，货柜车-单蒸空调收音机+USB&蓝牙，前门电动窗，单层货柜，非侧开门）\nLV0 (5 Seats, Container truck - Single-stage air-conditioned radio with USB & Bluetooth, Front door electric window, Single-layer container, Non-side opening door)",48600,48204.0816326531,46918.3673469388,7059.80066445183,7006.40721404841,6819.53013763645]
[null,"五菱荣光新卡双后轮 2.0L 5MT 单排",null,null,null,"荣光新单排双后轮货车 载重1756kg\nN350 Single Cab Pickup with Dual Rear Wheels\nPayload: 1756kg","LZW1030LGHUB\n国Ⅵ China Ⅵ\n国六b RDE","AGAK","VR5\n(1.999L)\n5MT","LV1 (2座，前置空调G，EPS，ABS+EBD，前电动门窗，铁车轮，驾驶员气囊，倒车雷达，可视倒车+8寸触摸屏+收音机+蓝牙+USB) \nLV1（2 Seats, A/C-G, EPS, ABS+EBD, Front Power Window, Steel Wheel, Driver Airbag, Rear Parking Sensors, Reversing Video+8 inch touchable Screen+Radio+Bluetooth+USB）",53900,53510.2040816327,52336.7346938776,7831.03939250119,7777.64594209777,7607.08353108685,{"$f":"_xlfn.DISPIMG(\"ID_A86B5043272149B9AA3EF71C3B72BB8E\",1)","v":"=DISPIMG(\"ID_A86B5043272149B9AA3EF71C3B72BB8E\",1)"}]
[null,"五菱荣光新卡双后轮 2.0L 5MT 双排",null,null,null,"荣光新双排双后轮货车  载重1499kg\nN350 Double Cab Pickup with Dual Rear Wheels\nPayload: 1499kg","LZW1030SLGHUB\n国Ⅵ China Ⅵ\n国六b RDE","AGBV","VR5\n(1.999L)\n5MT","LV0 (5座，前置空调G，EPS，ABS+EBD，前电动门窗，铁车轮，倒车雷达，收音机+蓝牙+USB) \nLV0 (5 Seats, A/C-G, EPS, ABS+EBD, Front Power Window,Steel Wheel, Rear Parking Sensors, Radio+Bluetooth+USB）",54700,54224.4897959184,52938.7755102041,7934.85999050783,7881.46654010441,7694.58946369245,{"$f":"_xlfn.DISPIMG(\"ID_5EB2B8EBEE8748C5B6F87D55CEBFEE0D\",1)","v":"=DISPIMG(\"ID_5EB2B8EBEE8748C5B6F87D55CEBFEE0D\",1)"}]
[null,"五菱荣光新卡双后轮 2.0L 5MT 双排",{"$nulls":5},"AGCF",null,"LV1 (5座，前置空调G，EPS，ABS+EBD，前电动门窗，铁车轮，驾驶员气囊，倒车雷达，可视倒车+8寸触摸屏+USB+收音机+蓝牙) \nLV1（5 Seats, A/C-G, EPS, ABS+EBD, Front Power Window, Steel Wheel, Driver Airbag, Rear Parking Sensors, Reversing Video+8 inch touchable Screen+USB+Radio+Bluetooth）",57100,56571.4285714286,55285.7142857143,8275.98481252966,8222.59136212625,8035.71428571429,{"$f":"_xlfn.DISPIMG(\"ID_5EB2B8EBEE8748C5B6F87D55CEBFEE0D\",1)","v":"=DISPIMG(\"ID_5EB2B8EBEE8748C5B6F87D55CEBFEE0D\",1)"}]
[null,"五菱荣光加长版",null,null,null,"荣光加长客车\nN300 Long Passenger","LZW6450EQU\n国Ⅵ China Ⅵ\n国六b RDE","K9PG","UX5\n(1.485L)\n5MT","基本型 (7座, 空调H，机械转向，前手动门窗，ABS，铁车轮，胎压监测，后钢板弹簧非独立悬架)  \nBase (7 Seats, A/C-H, Mechanical Steering, Front Manual Window, ABS, Steel Wheel, TPMS, Rear Leaf Spring Non Isolated Rear Suspension)",43700,43306.1224489796,42326.5306122449,6347.88799240626,6294.49454200285,6152.11200759374,{"$f":"_xlfn.DISPIMG(\"ID_351FA8D9189C4982ADD39997E8AB4DF0\",1)","v":"=DISPIMG(\"ID_351FA8D9189C4982ADD39997E8AB4DF0\",1)"}]
[null,"五菱荣光加长版",{"$nulls":5},"K9PZ",null,"基本型 (7座，空调H，EPS，前门电动门窗，ABS，铁车轮，胎压监测，中控门锁，遥控钥匙，后钢板弹簧非独立悬架)  \nBase (7 Seats, A/C-H, EPS, Front Power Window, ABS, Steel Wheel, TPMS, Power Door Lock, Remote Key, Rear Leaf Spring Non Isolated Rear Suspension)",45400,44938.7755102041,43959.1836734694,6585.19221642145,6531.79876601804,6389.41623160892,{"$f":"_xlfn.DISPIMG(\"ID_351FA8D9189C4982ADD39997E8AB4DF0\",1)","v":"=DISPIMG(\"ID_351FA8D9189C4982ADD39997E8AB4DF0\",1)"}]
[null,"五菱荣光加长版",null,null,null,"荣光加长厢式运输车\nN300L Cargo","LZW5024XXYEQU\n国Ⅵ China Ⅵ\n国六b RDE","K9RW",null,"基本型 (2座，前置空调G，机械转向，前手动门窗，ABS，铁车轮，隔离栏，后钢板弹簧非独立悬架)  \nBase（2 Seats，A/C-G, Mechanical Steering, Front Manual Window, ABS, Steel Wheel, CAB Shelter, Rear Leaf Spring Non Isolated Rear Suspension)",41900,41367.3469387755,40387.7551020408,6066.08922638823,6012.69577598481,5870.3132415757,{"$f":"_xlfn.DISPIMG(\"ID_63E6628EAE6E460188F50273E6D98978\",1)","v":"=DISPIMG(\"ID_63E6628EAE6E460188F50273E6D98978\",1)"}]
[null,"五菱荣光加长版",{"$nulls":5},"K9RV",null,"基本型 (2座，无空调G，机械转向，前手动门窗，ABS，铁车轮，隔离栏，后钢板弹簧非独立悬架)  \nBase（2 Seats，w/o A/C, Mechanical Steering, Front Manual Window, ABS, Steel Wheel, CAB Shelter, Rear Leaf Spring Non Isolated Rear Suspension)",40800,40448.9795918367,39469.387755102,5932.60560037969,5879.21214997627,5736.82961556716,"=DISPIMG(\"ID_63E6628EAE6E460188F50273E6D98978\",1)"]
[null,"五菱荣光加长版",{"$nulls":5},"K9SC",null,"基本型 (2座，前置空调G，前电动门窗，EPS，ABS，铁车轮，中控门锁，遥控钥匙，隔离栏，后钢板弹簧非独立悬架)  \nBase（2 Seats, A/C-G, Front Power Window, EPS, ABS, Steel Wheel, Power Door Lock, Remote Key, CAB Shelter, Rear Leaf Spring Non Isolated Rear Suspension)",43800,43306.1224489796,42326.5306122449,6347.88799240626,6294.49454200285,6152.11200759374,"=DISPIMG(\"ID_63E6628EAE6E460188F50273E6D98978\",1)"]
[null,"五菱荣光加长版",{"$nulls":4},"LZW5024XXYEQUA\n国Ⅵ China Ⅵ\n国六b RDE","K9UT",null,"基本型 (2座，前置空调G，机械转向，前手动门窗，ABS，铁车轮，隔离栏，后钢板弹簧非独立悬架)  \nBase（2 Seats，A/C-G, Mechanical Steering, Front Manual Window, ABS, Steel Wheel, CAB Shelter, Rear Leaf Spring Non Isolated Rear Suspension)",43800,43306.1224489796,42326.5306122449,6347.88799240626,6294.49454200285,6152.11200759374,"=DISPIMG(\"ID_63E6628EAE6E460188F50273E6D98978\",1)"]
[null,"五菱荣光加长版",{"$nulls":5},"K9V9",null,"基本型 (5座，前置空调G，前电动门窗，EPS，ABS，铁车轮，中控门锁，遥控钥匙，隔离栏，后钢板弹簧非独立悬架)  \nBase（5 Seats, A/C-G, Front Power Window, EPS, ABS, Steel Wheel, Power Door Lock, Remote Key, CAB Shelter, Rear Leaf Spring Non Isolated Rear Suspension)",45500,44938.7755102041,43959.1836734694,6585.19221642145,6531.79876601804,6389.41623160892,"=DISPIMG(\"ID_63E6628EAE6E460188F50273E6D98978\",1)"]